Workbook

Sheet Rando
A1: Randonnées Année 2017
A2: Date | B2: Randonnée | D2: Distance | F2: Dénivelé + | G2: Durée | H2: Participant | J2: Météo
A4: 2017-01-06 | B4: Murs,Le lac St André , Le lac des Peres, Gallettes, Seloge, Ret | D4: 8.8 | F4: 56 | G4: 0.09722222222 | H4: 7
A5: 2017-01-09 | B5: Lac, Les Fromagets, Lac froment, Surprise Yolande, La Palud, St André | D5: 11.2 | F5: 204 | G5: 0.1388888889 | H5: 5
A6: 2017-01-16 | B6: Belisay, Saint Jeoire, Myans Ret | D6: 11.2 | F6: 115 | G6: 0.125 | H6: 6
A7: 2017-01-20 | B7: Chemin de Blardet, la Ratte, Les Pélerins, Maretaz, Les Drouilly, Ret. | D7: 11.1 | F7: 65 | G7: 0.125 | H7: 5
A8: 2017-01-27 | B8: Col du Granier, Tencovaz, Col du Granier | D8: 6 | F8: 181 | G8: 0.1041666667 | H8: 5
A9: 2017-01-30 | B9: Murs,Le lac St André , Le lac clair, les Abymes, Maraville Rt des Mortes | D9: 10.8 | F9: 61 | G9: 0.1180555556 | H9: 2
A10: 2017-02-02 | B10: La coche, Direction Col du Granier, Piste de ski du Granier, La coche | D10: 5.8 | F10: 280 | G10: 0.1076388889 | H10: 3
A11: 2017-02-06 | B11: La corne, Blardet Lac des peres, Les Pélerins , Les Drouilly | D11: 9.7 | F11: 65 | G11: 0.1076388889 | H11: 6
A12: 2017-02-10 | B12: Col du Granier, Tencovaz, Col du Granier ,"superbe" | D12: 6.1 | F12: 192 | G12: 0.1076388889 | H12: 3
A13: 2017-02-13 | B13: Les déserts d'Entremonts , Col du Mollard | D13: 6 | F13: 305 | G13: 0.1041666667 | H13: 5
A14: 2017-02-10 | B14: Murs, Chapa, Lac Clair, Blardet, RN , Murs | D14: 10.9 | F14: 61 | G14: 0.1111111111 | H14: 2
A15: 2017-02-13 | B15: Murs, Lac St André, La redoute, Myans, Seloge, La foret, Murs | D15: 10.8 | F15: 135 | G15: 0.1076388889 | H15: 2
A16: 2017-02-17 | B16: Les deserts dEntremont le grand Carroz, Col du Mollard | D16: 6.7 | F16: 432 | G16: 0.1041666667 | H16: 5
A17: 2017-02-20 | B17: F1, sentier des hauts de Chignin par Montlevin, Retour | D17: 8.4 | F17: 423 | G17: 0.1180555556 | H17: 4
A18: 2017-02-24 | B18: chemin des abymes, Myans, chocolaterie Eden, guimauve | D18: 8.3 | F18: 100 | G18: 0.1041666667 | H18: 4
A19: 2017-02-17 | B19: Murs, La Foret, Bois musart, Champlong , Retour | D19: 7.8 | F19: 35 | G19: 0.08333333333 | H19: 2
A20: 2017-02-27 | B20: Super U Francin, circuit des vignes Chignin , Retour | D20: 11 | F20: 236 | G20: 0.125 | H20: 7
A21: 2017-03-03 | B21: La Foret, Murs,La Corne, Cugnet, Drouilly | D21: 11.1 | F21: 107 | G21: 0.125 | H21: 10
A22: 2017-03-10 | B22: Les déserts d'Entremonts , Col du Mollard | D22: 6 | F22: 305 | G22: 0.1041666667 | H22: 4
A23: 2017-03-13 | B23: Depart Super U Pontcharra Tour des Lones | D23: 9.5 | F23: 28 | G23: 0.125 | H23: 8
A24: 2017-03-17 | B24: Les Marches , Chignin Gare,Chacusart , lac des Peres,Ret. | D24: 10.5 | F24: 178 | G24: 0.125 | H24: 8
A25: 2017-03-20 | B25: St André, La Palud, Lachat, St André | D25: 7.6 | F25: 186 | G25: 0.1215277778 | H25: 7
A26: 2017-03-24 | B26: Seloge, Les fontanettes, Myans, Retour idem | D26: 11 | F26: 75 | G26: 0.1354166667 | H26: 4
A27: 2017-03-27 | B27: La Foret, Le golf, Chignin, Belissay , ZA | D27: 11.7 | F27: 78 | G27: 0.1270833333 | H27: 8
A28: 2017-03-31 | B28: Seloge Myans, lac des Pères, Pierre hachée, Les Fromagets, | D28: 9.6 | F28: 104 | G28: 0.125 | H28: 7
A29: 2017-04-03 | B29: St André, Martinons, Lac Sablé, Lac Froment, Ret | D29: 9.3 | F29: 241 | G29: 0.1354166667 | H29: 7
A30: 2017-04-07 | B30: St André, la Ratte, Apremont, Pierre Grosse, Ret. | D30: 9.8 | F30: 128 | G30: 0.1111111111 | H30: 5
A31: 2017-04-10 | B31: St André, Lachat, Lac Noir, La palud, Dt André | D31: 12.1 | F31: 438 | G31: 0.1506944444 | H31: 4
A32: 2017-04-14 | B32: Chapa, La Fourchette, La cuiller, Les delaisses de l'isere, Ret | D32: 11.5 | F32: 328 | G32: 0.125 | H32: 8
A33: 2017-04-18 | B33: St André, La palud, Lachat, La Ratte, St André | D33: 11 | F33: 289 | G33: 0.125 | H33: 5
A34: 2017-04-21 | B34: Super U Francin, Tormery, Le Villard, Tormery, Ret. | D34: 8.1 | F34: 178 | G34: 0.1131944444 | H34: 8
A35: 2017-04-24 | B35: Le Boyat, Puygros, Le Bois, Ret. | D35: 6.7 | F35: 250 | G35: 0.08333333333 | H35: 2
A36: 2017-05-02 | B36: St André, Lachat, Maison en pierre, Apremont, Ret. | D36: 7.5 | F36: 284 | G36: 0.1048611111 | H36: 5
A37: 2017-05-05 | B37: St Pierre de Soucy, Soucy, Ret,X, Tour du lac de Ste Helene | D37: 13.2 | F37: 240 | G37: 0.15625 | H37: 9
A38: 2017-05-08 | B38: St André, Le devin, Maison en pierre, Lachat, La Palud, les Darbe | D38: 10.1 | F38: 288 | G38: 0.1284722222 | H38: 6
A39: 2017-05-15 | B39: La Foret, Le Bon de Loge, Murs, Retour | D39: 11.7 | F39: 81 | G39: 0.1194444444 | H39: 7
A40: 2017-05-19 | B40: St André, La Palud, Pervenche, Martinon, Lachat, Froment, Ret. | D40: 8.5 | F40: 282 | G40: 0.1041666667 | H40: 3
A41: 2017-05-22 | B41: St Georges, Parcours santé Ste Marie, La Baleine, Muguet, Ret. | D41: 8.3 | F41: 167 | G41: 0.1125 | H41: 5
A42: 2017-05-29 | B42: Les Deserts, Pointe de Cochette rocher de l'Outheran, X , Ret | D42: 6.8 | F42: 638 | G42: 0.1354166667 | H42: 4
A43: 2017-06-02 | B43: St André, Lachat, Apremont, Ret. | D43: 9 | F43: 100 | G43: 0.1145833333 | H43: 6
A44: 2017-06-05 | B44: Lac St André, Croix de St André, Lachat, La palud, Lac Froment | D44: 11.4 | F44: 290 | G44: 0.1388888889 | H44: 2
A45: 2017-06-09 | B45: Chapa, Bellecombette, Bellecombe, Vieux clocher | D45: 8.2 | F45: 445 | G45: 0.1354166667 | H45: 6
A46: 2017-06-12 | B46: St André, La Palud, Lachat, Lac Froment, St André | D46: 7.2 | F46: 162 | G46: 0.1041666667 | H46: 7
A47: 2017-06-16 | B47: Cascades d'Alloix | D47: 5 | F47: 363 | G47: 0.09375 | H47: 8
A48: 2017-06-23 | B48: St François de Salle, Chal. de la Platte,le Creux de lachat, X, Ret | D48: 17.4 | F48: 624 | G48: 0.25 | H48: 6
A49: 2017-06-30 | B49: Apremont, cascade du pichut, Le Villard, Ret, | D49: 7.9 | F49: 227 | G49: 0.09722222222 | H49: 6
A50: 2017-07-07 | B50: Prodin, Lac des Grenouilles, Col de la Perche, Refuge Grande Mont. | D50: 13.5 | F50: 915 | G50: 0.2604166667 | H50: 4
A51: 2017-07-13 | B51: Col de St Saturnin, Pralongan, Piste d'envol x, Ret.(Vacherin) | D51: 10.5 | F51: 610 | G51: 0.21875 | H51: 6
A52: 2017-07-21 | B52: La Trinité, Col de Cochette, Tours de Montmayeur,X,Ret. (Myrtille) | D52: 10.4 | F52: 550 | G52: 0.1979166667 | H52: 6
A53: 2017-07-27 | B53: Ecole en Bauges, Col d'Orgeval, x , Patous, Ret par la piste | D53: 13.8 | F53: 900 | G53: 0.2604166667 | H53: 7
A54: 2017-08-04 | B54: Col du Granier, Pointe de la Gorgeat, Mont Joigny, X, Ret. | D54: 8 | F54: 430 | G54: 0.1666666667 | H54: 5
A55: 2017-08-18 | B55: Marocaz,Rochefort,Manettaz, roche du Guet, X , La thuile, Ret | D55: 11.3 | F55: 871 | G55: 0.2083333333 | H55: 6
A56: 2017-08-25 | B56: Pré d'Orcel, Col , croix et chalet de l'Alpe, L'Alpette, Col Belles Ombres | D56: 14.5 | F56: 890 | G56: 0.2916666667 | H56: 4
A57: 2017-09-08 | B57: Lac St Claire, Villaroux, Tour de Montmayeur, X , Résistants, Ret. | D57: 16.8 | F57: 674 | G57: 0.25 | H57: 6
A58: 2017-09-11 | B58: Lac St André, Croix de St André, "La Chevre", Lachat, Lac Froment | D58: 10.7 | F58: 310 | G58: 0.1472222222 | H58: 5
A59: 2017-09-15 | B59: La Feclaz (1°) , La croix du Nivollet, X , Belvedere du Revard ,Clafoutis | D59: 10 | F59: 412 | G59: 0.1597222222 | H59: 8
A60: 2017-09-18 | B60: les Drouilly, Myans, Chacuzard, Poisy, Crincaillé | D60: 9.4 | F60: 74 | G60: 0.09861111111 | H60: 7
A61: 2017-09-22 | B61: Château Richard, x , Croix du Signal , Ret. | D61: 11 | F61: 561 | G61: 0.2083333333 | H61: 7
A62: 2017-09-25 | B62: Lac St André, Lachat, ret. Par la Chevre | D62: 10 | F62: 292 | G62: 0.125 | H62: 7
A63: 2017-09-29 | B63: Cimetiere, Croix Verpi, St André, Les fromagets Lac St André | D63: 11.8 | F63: 100 | G63: 0.1458333333 | H63: 3
A64: 2017-10-02 | B64: St André, Rte de Bellecombe, Chataigne, Lachat, Lac Froment | D64: 8 | F64: 230 | G64: 0.125 | H64: 3
A65: 2017-10-06 | B65: Barby, Bellevarde,Fées, Rousset, Mt St Michel,x,Stele du maquis,Ret. | D65: 12.5 | F65: 913 | G65: 5h30 | H65: 3
A66: 2017-10-09 | B66: La Foret, Murs, Bisplaine, le Lac, Crinquaillé | D66: 10.2 | F66: 56 | G66: 0.125 | H66: 10
A67: 2017-10-13 | B67: Le Monal, lac du Clou, X , Mélèzes, Le Monal | D67: 11 | F67: 548 | G67: 0.2083333333 | H67: 6
A68: 2017-10-16 | B68: Chapa, La Cuiller, Chapa, Gisèle | D68: 8 | F68: 190 | G68: 0.09375 | H68: 6
A69: 2017-10-20 | B69: Montée et Desccente du Funiculaire de St Hilaire | D69: 5.6 | F69: 800 | G69: 0.1666666667 | H69: 6
A77: Nombre de Randonnées | C77: =COUNTA(A4:A74) -> 66 | D77: Dont: | F77: =NbCoulParCouleur(B4:B74,4) -> 6 | G77: en Raquettes | I77: Moyenne générale
A78: Le Plus | C78: =MAX(D4:D75) -> 17.4 | E78: =MAX(F4:F75) -> 915 | G78: =MAX(G4:G75) -> 0.2916666667 | H78: =MAX(H4:H75) -> 10 | I78: =C81/G81/24 -> 2.996285405
A79: Le Moins | C79: =MIN(D4:D75) -> 5 | E79: =MIN(F4:F75) -> 28 | G79: =MIN(G4:G75) -> 0.08333333333 | H79: =MIN(H4:H75) -> 2
A80: Moyenne | C80: =AVERAGE(D4:D75) -> 9.777272727 | E80: =AVERAGE(F4:F75) -> 308.7272727 | G80: =AVERAGE(G4:G75) -> 0.1380555556 | H80: =AVERAGE(H4:H75) -> 5.5 | I80: =SUM(H4:H75) -> 363
A81: Cumul | C81: =SUM(D4:D75) -> 645.3 | E81: =SUM(F4:F75) -> 20376 | G81: =SUM(G4:G75) -> 8.973611111
A82: Bernard Heck bheck@live.fr 06 41 32 09 56 | C82: Nombre de Restaurant | F82: =NbCoulParCouleur(B4:B74,33) -> 1 | G82: Nombre de Pique Nique | J82: =NbCoulParCouleur(B4:B74,5) -> 19

Sheet Sommaire
A1: Prénoms | B1: André | C1: Andrée | D1: Bernard | E1: Christiane | F1: Dany | G1: Gianna | H1: Gisèle | I1: Marie | J1: Yolande | K1: Chris2. | L1: Michel | M1: Martine | N1: Colette | O1: Marie-F. | P1: MichelT | Q1: Monique | R1: Josiane | S1: Invité | T1: Total
A2: 2017
A4: 2017-01-06 | D4: 1 | E4: 1 | F4: 1 | G4: 1 | H4: 1 | I4: 1 | O4: 1 | T4: =SUM(B4:S4) -> 7
A5: 2017-01-09 | D5: 1 | F5: 1 | G5: 1 | H5: 1 | I5: 1 | T5: 5 | V5: Faire Alt F11 pour accéder à la macro
A6: 2017-01-16 | B6: 1 | C6: 1 | F6: 1 | G6: 1 | H6: 1 | I6: 1 | T6: 6
A7: 2017-01-20 | B7: 1 | C7: 1 | F7: 1 | H7: 1 | I7: 1 | T7: 5
A8: 2017-01-27 | C8: 1 | D8: 1 | H8: 1 | I8: 1 | J8: 1 | T8: 5 | V8: Renommer les feuilles à l'identique du prénom de la ligne 1: point accent espace
A9: 2017-01-30 | F9: 1 | G9: 1 | T9: 2
A10: 2017-02-02 | D10: 1 | I10: 1 | J10: 1 | T10: 3
A11: 2017-02-06 | B11: 1 | C11: 1 | D11: 1 | F11: 1 | H11: 1 | J11: 1 | T11: 6 | V11: Quand vous double liquerez sur une cellule avec un 1 la copie sera faite sans l'enregistrement
A12: 2017-02-10 | D12: 1 | H12: 1 | J12: 1 | T12: 3
A13: 2017-02-13 | D13: 1 | E13: 1 | H13: 1 | I13: 1 | J13: 1 | T13: 5
A14: 2017-02-10 | F14: 1 | G14: 1 | T14: 2 | V14: Pour plus de sécurité, l'action se déclenche au double clic de la cellule contenant un 1
A15: 2017-02-13 | F15: 1 | G15: 1 | T15: 2
A16: 2017-02-17 | D16: 1 | H16: 1 | I16: 1 | J16: 1 | P16: 1 | T16: 5
A17: 2017-02-20 | B17: 1 | D17: 1 | E17: 1 | J17: 1 | T17: 4
A18: 2017-02-24 | D18: 1 | I18: 1 | J18: 1 | Q18: 1 | T18: 4
A19: 2017-02-17 | F19: 1 | G19: 1 | T19: 2 | V19: Activer pour enregistrer la feuille avant de double cliquer sur le 1 les enregistrements seront effectués dans le même dossier que ce classeur
A20: 2017-02-27 | B20: 1 | D20: 1 | E20: 1 | F20: 1 | H20: 1 | I20: 1 | J20: 1 | T20: 7
A21: 2017-03-03 | B21: 1 | C21: 1 | D21: 1 | H21: 1 | I21: 1 | J21: 1 | K21: 1 | L21: 1 | N21: 1 | Q21: 1 | T21: 10
A22: 2017-03-10 | C22: 1 | D22: 1 | H22: 1 | J22: 1 | T22: 4
A23: 2017-03-13 | B23: 1 | D23: 1 | H23: 1 | I23: 1 | J23: 1 | K23: 1 | L23: 1 | Q23: 1 | T23: 8
A24: 2017-03-17 | B24: 1 | C24: 1 | F24: 1 | H24: 1 | I24: 1 | J24: 1 | K24: 1 | L24: 1 | T24: 8
A25: 2017-03-20 | B25: 1 | C25: 1 | D25: 1 | I25: 1 | J25: 1 | K25: 1 | L25: 1 | T25: 7
A26: 2017-03-24 | C26: 1 | F26: 1 | G26: 1 | J26: 1 | T26: 4
A27: 2017-03-27 | B27: 1 | C27: 1 | D27: 1 | H27: 1 | I27: 1 | J27: 1 | K27: 1 | L27: 1 | T27: 8
A28: 2017-03-31 | C28: 1 | D28: 1 | F28: 1 | H28: 1 | J28: 1 | K28: 1 | L28: 1 | T28: 7
A29: 2017-04-03 | B29: 1 | C29: 1 | D29: 1 | E29: 1 | H29: 1 | J29: 1 | S29: 1 | T29: 7
A30: 2017-04-07 | B30: 1 | D30: 1 | E30: 1 | F30: 1 | H30: 1 | T30: 5
A31: 2017-04-10 | D31: 1 | E31: 1 | H31: 1 | O31: 1 | T31: 4
A32: 2017-04-14 | B32: 1 | D32: 1 | E32: 1 | F32: 1 | H32: 1 | J32: 1 | O32: 1 | P32: 1 | T32: 8
A33: 2017-04-18 | D33: 1 | E33: 1 | G33: 1 | H33: 1 | J33: 1 | T33: 5
A34: 2017-04-21 | D34: 1 | F34: 1 | G34: 1 | I34: 1 | J34: 1 | K34: 1 | L34: 1 | S34: 1 | T34: 8
A35: 2017-04-24 | I35: 1 | J35: 1 | T35: 2
A36: 2017-05-02 | B36: 1 | D36: 1 | E36: 1 | F36: 1 | I36: 1 | T36: =SUM(B36:S36) -> 5
A37: 2017-05-05 | B37: 1 | C37: 1 | D37: 1 | E37: 1 | F37: 1 | H37: 1 | I37: 1 | O37: 1 | Q37: 1 | T37: 9
A38: 2017-05-08 | B38: 1 | C38: 1 | D38: 1 | I38: 1 | O38: 1 | P38: 1 | T38: 6
A39: 2017-05-15 | B39: 1 | D39: 1 | E39: 1 | H39: 1 | J39: 1 | M39: 1 | O39: 1 | T39: 7
A40: 2017-05-19 | D40: 1 | H40: 1 | J40: 1 | T40: 3
A41: 2017-05-22 | D41: 1 | E41: 1 | H41: 1 | J41: 1 | P41: 1 | T41: 5
A42: 2017-05-29 | D42: 1 | H42: 1 | J42: 1 | P42: 1 | T42: 4
A43: 2017-06-02 | B43: 1 | C43: 1 | F43: 1 | H43: 1 | O43: 1 | P43: 1 | T43: 6
A44: 2017-06-05 | D44: 1 | P44: 1 | T44: 2
A45: 2017-06-09 | B45: 1 | C45: 1 | D45: 1 | H45: 1 | I45: 1 | J45: 1 | T45: 6
A46: 2017-06-12 | D46: 1 | F46: 1 | H46: 1 | I46: 1 | J46: 1 | O46: 1 | P46: 1 | T46: 7
A47: 2017-06-16 | B47: 1 | C47: 1 | D47: 1 | E47: 1 | H47: 1 | I47: 1 | J47: 1 | P47: 1 | T47: 8
A48: 2017-06-23 | B48: 1 | C48: 1 | D48: 1 | J48: 1 | O48: 1 | P48: 1 | T48: 6
A49: 2017-06-30 | B49: 1 | C49: 1 | D49: 1 | H49: 1 | J49: 1 | O49: 1 | T49: 6
A50: 2017-07-07 | D50: 1 | H50: 1 | J50: 1 | O50: 1 | T50: 4
A51: 2017-07-13 | B51: 1 | C51: 1 | D51: 1 | H51: 1 | J51: 1 | O51: 1 | T51: 6
A52: 2017-07-21 | B52: 1 | C52: 1 | D52: 1 | H52: 1 | I52: 1 | J52: 1 | T52: 6
A53: 2017-07-27 | B53: 1 | C53: 1 | D53: 1 | H53: 1 | I53: 1 | J53: 1 | P53: 1 | T53: 7
A54: 2017-08-04 | H54: 1 | I54: 1 | J54: 1 | O54: 1 | P54: 1 | T54: 5
A55: 2017-08-18 | D55: 1 | I55: 1 | J55: 1 | O55: 1 | P55: 1 | S55: 1 | T55: 6
A56: 2017-08-25 | C56: 1 | D56: 1 | H56: 1 | J56: 1 | T56: 4
A57: 2017-09-08 | C57: 1 | D57: 1 | J57: 1 | O57: 1 | P57: 1 | R57: 1 | T57: 6
A58: 2017-09-11 | D58: 1 | J58: 1 | O58: 1 | S58: 2 | T58: 5
A59: 2017-09-15 | B59: 1 | C59: 1 | D59: 1 | H59: 1 | I59: 1 | J59: 1 | O59: 1 | R59: 1 | T59: 8
A60: 2017-09-18 | B60: 1 | D60: 1 | F60: 1 | H60: 1 | I60: 1 | J60: 1 | O60: 1 | T60: 7
A61: 2017-09-22 | B61: 1 | C61: 1 | H61: 1 | I61: 1 | J61: 1 | O61: 1 | R61: 1 | T61: 7
A62: 2017-09-25 | C62: 1 | F62: 1 | G62: 1 | H62: 1 | I62: 1 | J62: 1 | O62: 1 | T62: 7
A63: 2017-09-29 | C63: 1 | H63: 1 | I63: 1 | T63: 3
A64: 2017-10-02 | D64: 1 | H64: 1 | I64: 1 | T64: 3
A65: 2017-10-06 | D65: 1 | H65: 1 | I65: 1 | T65: 3
A66: 2017-10-09 | B66: 1 | C66: 1 | E66: 1 | H66: 1 | I66: 1 | J66: 1 | O66: 1 | S66: 3 | T66: 10
A67: 2017-10-13 | B67: 1 | C67: 1 | D67: 1 | F67: 1 | H67: 1 | I67: 1 | J67: 1 | T67: 7
A68: 2017-10-16 | B68: 1 | C68: 1 | D68: 1 | E68: 1 | F68: 1 | H68: 1 | J68: 1 | P68: 1 | T68: =SUM(B68:S68) -> 8
A69: 2017-10-20 | C69: 1 | D69: 1 | F69: 1 | H69: 1 | I69: 1 | J69: 1 | P69: 1 | T69: 7
T70: 0
T71: 0
T72: 0
T73: 0
T74: 0
T75: 0
T76: 0
T77: 0
T78: 0
T79: 0
T80: 0
B82: =SUM(B4:B80) -> 31 | C82: =SUM(C4:C80) -> 32 | D82: =SUM(D4:D80) -> 51 | E82: =SUM(E4:E80) -> 16 | F82: =SUM(F4:F80) -> 25 | G82: 11 | H82: 48 | I82: 37 | J82: 48 | K82: 7 | L82: 7 | M82: 1 | N82: 1 | O82: 21 | P82: 16 | Q82: 4 | S82: =SUM(S4:S80) -> 8 | T82: =SUM(T4:T80) -> 367
A84: TOTAL | B84: Randonnée: | E84: =COUNTA(A4:A80) -> 66 | G84: Moyenne Randonneurs: | K84: =T82/E84 -> 5.560606061 | N84: Arrondi à : | T84: =K84 -> 5.560606061

Sheet André
A1: Randonnées André Année 2017
A2: Date | B2: Randonnée | D2: Distance | F2: Dénivelé + | G2: Durée | H2: Participant | J2: Météo
A3: a
A4: 2017-01-16 | B4: Belisay, Saint Jeoire, Myans Ret | D4: 11.2 | F4: 115 | G4: 0.125 | H4: 6
A5: 2017-01-20 | B5: Chemin de Blardet, la Ratte, Les Pélerins, Maretaz, Les Droully, Ret. | D5: 11.1 | F5: 65 | G5: 0.125 | H5: 5
A6: 2017-02-06 | B6: La corne, Blardet Lac des peres, Les Pélerins , Les Drouilly | D6: 9.7 | F6: 65 | G6: 0.1076388889 | H6: 6
A7: 2017-02-20 | B7: F1, sentier des hauts de Chignin par Montlevin, Retour | D7: 8.4 | F7: 423 | G7: 0.1180555556 | H7: 4
A8: 2017-02-27 | B8: Super U Francin, circuit des vignes Chignin , Retour | D8: 11 | F8: 236 | G8: 0.125 | H8: 7
A9: 2017-03-03 | B9: La Foret, Murs,La Corne, Cugnet, Drouilly | D9: 11.1 | F9: 107 | G9: 0.125 | H9: 10
A10: 2017-03-13 | B10: Depart Super U Pontcharra Tour des Lones | D10: 9.5 | F10: 28 | G10: 0.125 | H10: 8
A11: 2017-03-17 | B11: Les Marches , Chignin Gare,Chacusart , lac des Peres,Ret. | D11: 10.5 | F11: 178 | G11: 0.125 | H11: 8
A12: 2017-03-20 | B12: St André, La Palud, Lachat, St André | D12: 7.6 | F12: 186 | G12: 0.1215277778 | H12: 7
A13: 2017-03-27 | B13: La Foret, Le golf, Chignin, Belissay , ZA | D13: 11.7 | F13: 78 | G13: 0.1270833333 | H13: 8
A14: 2017-04-03 | B14: St André, Martinons, Lac Sablé, Lac Froment, Ret | D14: 9.3 | F14: 241 | G14: 0.1354166667 | H14: 7
A15: 2017-04-07 | B15: St André, la Ratte, Apremont, Pierre Grosse, Ret. | D15: 9.8 | F15: 128 | G15: 0.1111111111 | H15: 5
A16: 2017-04-14 | B16: Chapa, La Fourchette, La cuiller, Les delaisses de l'isere, Ret | D16: 11.5 | F16: 328 | G16: 0.125 | H16: 8
A17: 2017-05-02 | B17: St André, Lachat, Maison en pierre, Apremont, Ret. | D17: 7.5 | F17: 284 | G17: 0.1048611111 | H17: 5
A18: 2017-05-05 | B18: St Pierre de Soucy, Soucy, Ret,X | D18: 9.6 | F18: 233 | G18: 0.1055555556 | H18: 8
A19: 2017-05-08 | B19: St André, Le devin, Maison en pierre, Lachat, La Palud, les Darbe | D19: 10.1 | F19: 288 | G19: 0.1284722222 | H19: 6
A20: 2017-05-15 | B20: La Foret, Le Bon de Loge, Murs, Retour | D20: 11.7 | F20: 81 | G20: 0.1194444444 | H20: 7
A21: 2017-06-02 | B21: St André, Lachat, Apremont, Ret. | D21: 9 | F21: 100 | G21: 0.1145833333 | H21: 6
A22: 2017-06-09 | B22: Chapa, Bellecombette, Bellecombe, Vieux clocher | D22: 8.2 | F22: 445 | G22: 0.1354166667 | H22: 6
A23: 2017-06-16 | B23: Cascades d'Alloix | D23: 5 | F23: 363 | G23: 0.09375 | H23: 8
A24: 2017-06-23 | B24: St François de Salle, Chal. de la Platte,le Creux de lachat, X, Ret | D24: 17.4 | F24: 624 | G24: 0.25 | H24: 6
A25: 2017-06-30 | B25: Apremont, cascade du pichut, Le Villard, Ret, | D25: 7.9 | F25: 227 | G25: 0.09722222222 | H25: 6
A26: 2017-07-13 | B26: Col de St Saturnin, Pragondran, Piste d'envol x, Ret.(Vacherin) | D26: 10.5 | F26: 610 | G26: 0.21875 | H26: 6
A27: 2017-07-21 | B27: La Trinité, Col de Cochette, Tours de Montmayeur,X,Ret. (Myrtille) | D27: 10.4 | F27: 550 | G27: 0.1979166667 | H27: 6
A28: 2017-07-27 | B28: Ecole en Bauges, Col d'Orgeval, x , Patous, Ret par la piste | D28: 13.8 | F28: 900 | G28: 0.2604166667 | H28: 7
A29: 2017-09-15 | B29: La Feclaz (1°) , La croix du Nivollet, X , Belvedere du Revard ,Clafoutis | D29: 10 | F29: 412 | G29: 0.1597222222 | H29: 8
A30: 2017-09-18 | B30: les Drouilly, Myans, Chacuzard, Poisy, Crincaillé | D30: 9.4 | F30: 74 | G30: 0.09861111111 | H30: 7
A31: 2017-09-22 | B31: Château Richard, x , Croix du Signal , Ret. | D31: 11 | F31: 561 | G31: 0.2083333333 | H31: 7
A32: 2017-10-13 | B32: Le Monal, lac du Clou, X , Mélèzes, Le Monal | D32: 11 | F32: 548 | G32: 0.2083333333 | H32: 6
A33: 2017-10-16 | B33: Chapa, La Cuiller, Chapa, Gisèle | D33: 8 | F33: 190 | G33: 0.09375 | H33: 6
A34: Dernière
A39: Nombre de Randonnées | C39: =COUNTA(A4:A37) -> 31 | D39: Dont: | F39: =NbCoulParCouleur(B4:B70,4) -> 0 | G39: en Raquettes | I39: Moyenne générale
A40: Le Plus | C40: =MAX(D4:D37) -> 17.4 | E40: =MAX(F4:F37) -> 900 | G40: =MAX(G4:G37) -> 0.2604166667 | H40: =MAX(H4:H37) -> 10 | I40: =C43/G43/24 -> 3.011433306
A41: Le Moins | C41: =MIN(D4:D37) -> 5 | E41: =MIN(F4:F37) -> 28 | G41: =MIN(G4:G37) -> 0.09375 | H41: =MIN(H4:H37) -> 4
A42: Moyenne | C42: =AVERAGE(D4:D37) -> 10.09666667 | E42: =AVERAGE(F4:F37) -> 288.9333333 | G42: =AVERAGE(G4:G37) -> 0.1396990741 | H42: =AVERAGE(H4:H37) -> 6.666666667 | I42: =SUM(H4:H37) -> 200
A43: Cumul | C43: =SUM(D4:D37) -> 302.9 | E43: =SUM(F4:F37) -> 8668 | G43: =SUM(G4:G37) -> 4.190972222
A44: Bernard Heck bheck@live.fr 06 41 32 09 56 | C44: Nombre de Restaurant | F44: =NbCoulParCouleur(B4:B70,33) -> 1 | G44: Nombre de Pique Nique | J44: =NbCoulParCouleur(B4:B69,5) -> 7

Sheet Andrée
A1: Randonnées Andrée Année 2017
A2: Date | B2: Randonnée | D2: Distance | F2: Dénivelé + | G2: Durée | H2: Participant | J2: Météo
A4: 2017-01-16 | B4: Belisay, Saint Jeoire, Myans Ret | D4: 11.2 | F4: 115 | G4: 0.125 | H4: 6
A5: 2017-01-20 | B5: Chemin de Blardet, la Ratte, Les Pélerins, Maretaz, Les Droully, Ret. | D5: 11.1 | F5: 65 | G5: 0.125 | H5: 5
A6: 2017-01-27 | B6: Col du Granier, Tencovaz, Col du Granier | D6: 6 | F6: 181 | G6: 0.1041666667 | H6: 5
A7: 2017-02-06 | B7: La corne, Blardet Lac des peres, Les Pélerins , Les Drouilly | D7: 9.7 | F7: 65 | G7: 0.1076388889 | H7: 6
A8: 2017-03-03 | B8: La Foret, Murs,La Corne, Cugnet, Drouilly | D8: 11.1 | F8: 107 | G8: 0.125 | H8: 10
A9: 2017-03-10 | B9: Les déserts d'Entremonts , Col du Mollard | D9: 6 | F9: 305 | G9: 0.1041666667 | H9: 4
A10: 2017-03-17 | B10: Les Marches , Chignin Gare,Chacusart , lac des Peres,Ret. | D10: 10.5 | F10: 178 | G10: 0.125 | H10: 8
A11: 2017-03-20 | B11: St André, La Palud, Lachat, St André | D11: 7.6 | F11: 186 | G11: 0.1215277778 | H11: 7
A12: 2017-03-24 | B12: Seloge, Les fontanettes, Myans, Retour idem | D12: 11 | F12: 75 | G12: 0.1354166667 | H12: 4
A13: 2017-03-27 | B13: La Foret, Le golf, Chignin, Belissay , ZA | D13: 11.7 | F13: 78 | G13: 0.1270833333 | H13: 8
A14: 2017-03-31 | B14: Seloge Myans, lac des Pères, Pierre hachée, Les Fromagets, | D14: 9.6 | F14: 104 | G14: 0.125 | H14: 7
A15: 2017-04-03 | B15: St André, Martinons, Lac Sablé, Lac Froment, Ret | D15: 9.3 | F15: 241 | G15: 0.1354166667 | H15: 7
A16: 2017-05-05 | B16: St Pierre de Soucy, Soucy, Ret, X | D16: 9.6 | F16: 233 | G16: 0.1055555556 | H16: 8
A17: 2017-05-08 | B17: St André, Le devin, Maison en pierre, Lachat, La Palud, les Darbe | D17: 10.1 | F17: 288 | G17: 0.1284722222 | H17: 6
A18: 2017-06-02 | B18: St André, Lachat, Apremont, Ret. | D18: 9 | F18: 100 | G18: 0.1145833333 | H18: 6
A19: 2017-06-09 | B19: Chapa, Bellecombette, Bellecombe, Vieux clocher | D19: 8.2 | F19: 445 | G19: 0.1354166667 | H19: 6
A20: 2017-06-16 | B20: Cascades d'Alloix | D20: 5 | F20: 363 | G20: 0.09375 | H20: 8
A21: 2017-06-23 | B21: St François de Salle, Chal. de la Platte,le Creux de lachat, X, Ret | D21: 17.4 | F21: 624 | G21: 0.25 | H21: 6
A22: 2017-06-30 | B22: Apremont, cascade du pichut, Le Villard, Ret, | D22: 7.9 | F22: 227 | G22: 0.09722222222 | H22: 6
A23: 2017-07-13 | B23: Col de St Saturnin, Pragondran, Piste d'envol x, Ret.(Vacherin) | D23: 10.5 | F23: 610 | G23: 0.21875 | H23: 6
A24: 2017-07-21 | B24: La Trinité, Col de Cochette, Tours de Montmayeur,X,Ret. (Myrtille) | D24: 10.4 | F24: 550 | G24: 0.1979166667 | H24: 6
A25: 2017-07-27 | B25: Ecole en Bauges, Col d'Orgeval, x , Patous, Ret par la piste | D25: 13.8 | F25: 900 | G25: 0.2604166667 | H25: 7
A26: 2017-08-25 | B26: Pré d'Orcel, Col , croix et chalet de l'Alpe, L'Alpette, Col Belles Ombres | D26: 14.5 | F26: 890 | G26: 0.2916666667 | H26: 4
A27: 2017-09-08 | B27: Lac St Claire, Villaroux, Tour de Montmayeur, X , Résistants, Ret. | D27: 16.8 | F27: 674 | G27: 0.25 | H27: 6
A28: 2017-09-15 | B28: La Feclaz (1°) , La croix du Nivollet, X , Belvedere du Revard ,Clafoutis | D28: 10 | F28: 412 | G28: 0.1597222222 | H28: 8
A29: 2017-09-22 | B29: Château Richard, x , Croix du Signal , Ret. | D29: 11 | F29: 561 | G29: 0.2083333333 | H29: 7
A30: 2017-09-25 | B30: Lac St André, Lachat, ret. Par la Chevre | D30: 10 | F30: 292 | G30: 0.125 | H30: 7
A31: 2017-09-29 | B31: Cimetiere, Croix Verpi, St André, Les fromagets Lac St André | D31: 11.8 | F31: 100 | G31: 0.1458333333 | H31: 3
A32: 2017-10-09 | B32: La Foret, Murs, Bisplaine, le Lac, Crinquaillé | D32: 10.2 | F32: 56 | G32: 0.125 | H32: 10
A33: 2017-10-13 | B33: Le Monal, lac du Clou, X , Mélèzes, Le Monal | D33: 11 | F33: 548 | G33: 0.2083333333 | H33: 6
A34: 2017-10-16 | B34: Chapa, La Cuiller, Chapa, Gisèle | D34: 8 | F34: 190 | G34: 0.09375 | H34: 6
A35: 2017-10-20 | B35: Montée et Desccente du Funiculaire de St Hilaire | D35: 5.6 | F35: 800 | G35: 0.1666666667 | H35: 6
A36: Dernière
A51: Nombre de Randonnées | C51: =COUNTA(A4:A49) -> 33 | D51: Dont: | F51: =NbCoulParCouleur(B4:B69,4) -> 2 | G51: en Raquettes | I51: Moyenne générale
A52: Le Plus | C52: =MAX(D4:D49) -> 17.4 | E52: =MAX(F4:F49) -> 900 | G52: =MAX(G4:G49) -> 0.2916666667 | H52: =MAX(H4:H49) -> 10 | I52: =C55/G55/24 -> 2.804881551
A53: Le Moins | C53: =MIN(D4:D49) -> 5 | E53: =MIN(F4:F49) -> 56 | G53: =MIN(G4:G49) -> 0.09375 | H53: =MIN(H4:H49) -> 3
A54: Moyenne | C54: =AVERAGE(D4:D49) -> 10.175 | E54: =AVERAGE(F4:F49) -> 330.09375 | G54: =AVERAGE(G4:G49) -> 0.1511501736 | H54: =AVERAGE(H4:H49) -> 6.40625 | I54: =SUM(H4:H49) -> 205
A55: Cumul | C55: =SUM(D4:D49) -> 325.6 | E55: =SUM(F4:F49) -> 10563 | G55: =SUM(G4:G49) -> 4.836805556
A56: Bernard Heck bheck@live.fr 06 41 32 09 56 | C56: Nombre de Restaurant | F56: =NbCoulParCouleur(B4:B69,33) -> 1 | G56: Nombre de Pique Nique | J56: =NbCoulParCouleur(B4:B69,5) -> 9

Sheet Bernard
A1: Randonnées Bernard Année 2017
A2: Date | B2: Randonnée | D2: Distance | F2: Dénivelé + | G2: Durée | H2: Participant | J2: Météo
A4: 2017-01-06 | B4: Murs,Le lac St André , Le lac des Peres, Gallettes, Seloge, Ret | D4: 8.8 | F4: 56 | G4: 0.09722222222 | H4: 7
A5: 2017-01-09 | B5: Lac, Les Fromagets, Lac froment, Surprise Yolande, La Palud, St André | D5: 11.2 | F5: 204 | G5: 0.1388888889 | H5: 5
A6: 2017-01-27 | B6: Col du Granier, Tencovaz, Col du Granier | D6: 6 | F6: 181 | G6: 0.1041666667 | H6: 5
A7: 2017-02-02 | B7: La coche, Direction Col du Granier, Piste de ski du Granier, La coche | D7: 5.8 | F7: 280 | G7: 0.1076388889 | H7: 3
A8: 2017-02-06 | B8: La corne, Blardet Lac des peres, Les Pélerins , Les Drouilly | D8: 9.7 | F8: 65 | G8: 0.1076388889 | H8: 6
A9: 2017-02-10 | B9: Col du Granier, Tencovaz, Col du Granier ,"superbe" | D9: 6.1 | F9: 192 | G9: 0.1076388889 | H9: 3
A10: 2017-02-13 | B10: Les déserts d'Entremonts , Col du Mollard | D10: 6 | F10: 305 | G10: 0.1041666667 | H10: 5
A11: 2017-02-17 | B11: Les deserts dEntremont le grand Carroz, Col du Mollard | D11: 6.7 | F11: 432 | G11: 0.1041666667 | H11: 5
A12: 2017-02-20 | B12: F1, sentier des hauts de Chignin par Montlevin, Retour | D12: 8.4 | F12: 423 | G12: 0.1180555556 | H12: 4
A13: 2017-02-24 | B13: chemin des abymes, Myans, chocolaterie Eden, guimauve | D13: 8.3 | F13: 100 | G13: 0.1041666667 | H13: 4
A14: 2017-02-27 | B14: Super U Francin, circuit des vignes Chignin , Retour | D14: 11 | F14: 236 | G14: 0.125 | H14: 7
A15: 2017-03-03 | B15: La Foret, Murs,La Corne, Cugnet, Drouilly | D15: 11.1 | F15: 107 | G15: 0.125 | H15: 10
A16: 2017-03-10 | B16: Les déserts d'Entremonts , Col du Mollard | D16: 6 | F16: 305 | G16: 0.1041666667 | H16: 4
A17: 2017-03-13 | B17: Depart Super U Pontcharra Tour des Lones | D17: 9.5 | F17: 28 | G17: 0.125 | H17: 8
A18: 2017-03-20 | B18: St André, La Palud, Lachat, St André | D18: 7.6 | F18: 186 | G18: 0.1215277778 | H18: 7
A19: 2017-03-27 | B19: La Foret, Le golf, Chignin, Belissay , ZA | D19: 11.7 | F19: 78 | G19: 0.1270833333 | H19: 8
A20: 2017-03-31 | B20: Seloge Myans, lac des Pères, Pierre hachée, Les Fromagets, | D20: 9.6 | F20: 104 | G20: 0.125 | H20: 7
A21: 2017-04-03 | B21: St André, Martinons, Lac Sablé, Lac Froment, Ret | D21: 9.3 | F21: 241 | G21: 0.1354166667 | H21: 7
A22: 2017-04-07 | B22: St André, la Ratte, Apremont, Pierre Grosse, Ret. | D22: 9.8 | F22: 128 | G22: 0.1111111111 | H22: 5
A23: 2017-04-10 | B23: St André, Lachat, Lac Noir, La palud, St André | D23: 12.1 | F23: 438 | G23: 0.1506944444 | H23: 4
A24: 2017-04-14 | B24: Chapa, La Fourchette, La cuiller, Les delaisses de l'isere, Ret | D24: 11.5 | F24: 328 | G24: 0.125 | H24: 8
A25: 2017-04-18 | B25: St André, La palud, Lachat, La Ratte, St André | D25: 11 | F25: 289 | G25: 0.125 | H25: 5
A26: 2017-04-21 | B26: Super U Francin, Tormery, Le Villard, Tormery, Ret. | D26: 8.1 | F26: 178 | G26: 0.1131944444 | H26: 8
A27: 2017-05-02 | B27: St André, Lachat, Maison en pierre, Apremont, Ret. | D27: 7.5 | F27: 284 | G27: 0.1048611111 | H27: 5
A28: 2017-05-05 | B28: St Pierre de Soucy, Soucy, Ret,X, Tour du lac de Ste Helene | D28: 13.2 | F28: 240 | G28: 0.15625 | H28: 9
A29: 2017-05-08 | B29: St André, Le devin, Maison en pierre, Lachat, La Palud, les Darbe | D29: 10.1 | F29: 288 | G29: 0.1284722222 | H29: 6
A30: 2017-05-15 | B30: La Foret, Le Bon de Loge, Murs, Retour | D30: 11.7 | F30: 81 | G30: 0.1194444444 | H30: 7
A31: 2017-05-19 | B31: St André, La Palud, Pervenche, Martinon, Lachat, Froment, Ret. | D31: 8.5 | F31: 282 | G31: 0.1041666667 | H31: 3
A32: 2017-05-22 | B32: St Georges, Parcours santé Ste Marie, La Baleine, Muguet, Ret. | D32: 8.3 | F32: 167 | G32: 0.1125 | H32: 5
A33: 2017-05-29 | B33: Les Deserts, Pointe de Cochette, rocher de l'Outheran, X , Ret | D33: 6.8 | F33: 638 | G33: 0.1354166667 | H33: 4
A34: 2017-06-05 | B34: Lac St André, Croix de St André, Lachat, La palud, Lac Froment | D34: 11.4 | F34: 290 | G34: 0.1388888889 | H34: 2
A35: 2017-06-09 | B35: Chapa, Bellecombette, Bellecombe, Vieux clocher | D35: 8.2 | F35: 445 | G35: 0.1354166667 | H35: 6
A36: 2017-06-12 | B36: St André, La Palud, Lachat, Lac Froment, St André | D36: 7.2 | F36: 162 | G36: 0.1041666667 | H36: 7
A37: 2017-06-16 | B37: Cascades d'Alloix | D37: 5 | F37: 363 | G37: 0.09375 | H37: 8
A38: 2017-06-23 | B38: St François de Salle, Chal. de la Platte,le Creux de lachat, X, Ret | D38: 17.4 | F38: 624 | G38: 0.25 | H38: 6
A39: 2017-06-30 | B39: Apremont, cascade du pichut, Le Villard, Ret, | D39: 7.9 | F39: 227 | G39: 0.09722222222 | H39: 6
A40: 2017-07-07 | B40: Prodin, Lac des Grenouilles, Col de la Perche, Refuge Grande Mont. | D40: 13.5 | F40: 915 | G40: 0.2604166667 | H40: 4
A41: 2017-07-13 | B41: Col de St Saturnin, Pragondran, Piste d'envol x, Ret.(Vacherin) | D41: 10.5 | F41: 610 | G41: 0.21875 | H41: 6
A42: 2017-07-21 | B42: La Trinité, Col de Cochette, Tours de Montmayeur,X,Ret. (Myrtille) | D42: 10.4 | F42: 550 | G42: 0.1979166667 | H42: 6
A43: 2017-07-27 | B43: Ecole en Bauges, Col d'Orgeval, x , Patous, Ret par la piste | D43: 13.8 | F43: 900 | G43: 0.2604166667 | H43: 7
A44: 2017-08-18 | B44: Marocaz,Rochefort,Manettaz, roche du Guet, X , La thuile, Ret | D44: 11.3 | F44: 871 | G44: 0.2083333333 | H44: 6
A45: 2017-08-25 | B45: Pré d'Orcel, Col , croix et chalet de l'Alpe, L'Alpette, Col Belles Ombres | D45: 14.5 | F45: 890 | G45: 0.2916666667 | H45: 4
A46: 2017-09-08 | B46: Lac St Claire, Villaroux, Tour de Montmayeur, X , Résistants, Ret. | D46: 16.8 | F46: 674 | G46: 0.25 | H46: 6
A47: 2017-09-11 | B47: Lac St André, Croix de St André, "La Chevre", Lachat, Lac Froment | D47: 10.7 | F47: 310 | G47: 0.1472222222 | H47: 5
A48: 2017-09-15 | B48: La Feclaz (1°) , La croix du Nivollet, X , Belvedere du Revard ,Clafoutis | D48: 10 | F48: 412 | G48: 0.1597222222 | H48: 8
A49: 2017-09-18 | B49: les Drouilly, Myans, Chacuzard, Poisy, Crincaillé | D49: 9.4 | F49: 74 | G49: 0.09861111111 | H49: 7
A50: 2017-10-02 | B50: St André, Rte de Bellecombe, Chataigne, Lachat, Lac Froment | D50: 8 | F50: 230 | G50: 0.125 | H50: 3
A51: 2017-10-06 | B51: Barby, Bellevarde,Fées, Rousset, Mt St Michel,x,Stele du maquis,Ret. | D51: 12.5 | F51: 913 | G51: 5h30 | H51: 3
A52: 2017-10-13 | B52: Le Monal, lac du Clou, X , Mélèzes, Le Monal | D52: 11 | F52: 548 | G52: 0.2083333333 | H52: 6
A53: 2017-10-16 | B53: Chapa, La Cuiller, Chapa, Gisèle | D53: 8 | F53: 190 | G53: 0.09375 | H53: 6
A54: 2017-10-20 | B54: Montée et Desccente du Funiculaire de St Hilaire | D54: 5.6 | F54: 800 | G54: 0.1666666667 | H54: 6
A55: Dernière
A63: Nombre de Randonnées | C63: =COUNTA(A4:A61) -> 52 | D63: Dont: | F63: 6 | G63: en Raquettes | I63: Moyenne générale
A64: Le Plus | C64: =MAX(D4:D61) -> 17.4 | E64: =MAX(F4:F61) -> 915 | G64: =MAX(G4:G61) -> 0.2916666667 | H64: =MAX(H4:H61) -> 10 | I64: =C67/G67/24 -> 2.912535585
A65: Le Moins | C65: =MIN(D4:D61) -> 5 | E65: =MIN(F4:F61) -> 28 | G65: =MIN(G4:G61) -> 0.09375 | H65: =MIN(H4:H61) -> 2
A66: Moyenne | C66: =AVERAGE(D4:D61) -> 9.696078431 | E66: =AVERAGE(F4:F61) -> 350.2352941 | G66: =AVERAGE(G4:G61) -> 0.1414861111 | H66: =AVERAGE(H4:H61) -> 5.725490196 | I66: =SUM(H4:H61) -> 292
A67: Cumul | C67: =SUM(D4:D60) -> 494.5 | E67: =SUM(F4:F61) -> 17862 | G67: =SUM(G4:G61) -> 7.074305556
A68: Bernard Heck bheck@live.fr 06 41 32 09 56 | C68: Nombre de Restaurant | F68: =NbCoulParCouleur(B4:B73,33) -> 1 | G68: Nombre de Pique Nique | J68: =NbCoulParCouleur(B4:B60,5)-1 -> 12

Sheet Chris2.
A1: Randonnées Christiane P. Année 2017
A2: Date | B2: Randonnée | D2: Distance | F2: Dénivelé + | G2: Durée | H2: Participant | J2: Météo
A4: 2017-03-03 | B4: La Foret, Murs,La Corne, Cugnet, Drouilly | D4: 11.1 | F4: 107 | G4: 0.125 | H4: 10
A5: 2017-03-13 | B5: Depart Super U Pontcharra Tour des Lones | D5: 9.5 | F5: 28 | G5: 0.125 | H5: 8
A6: 2017-03-17 | B6: Les Marches , Chignin Gare,Chacusart , lac des Peres,Ret. | D6: 10.5 | F6: 178 | G6: 0.125 | H6: 8
A7: 2017-03-20 | B7: St André, La Palud, Lachat, St André | D7: 7.6 | F7: 186 | G7: 0.1215277778 | H7: 7
A8: 2017-03-27 | B8: La Foret, Le golf, Chignin, Belissay , ZA | D8: 11.7 | F8: 78 | G8: 0.1270833333 | H8: 8
A9: 2017-03-31 | B9: Seloge Myans, lac des Pères, Pierre hachée, Les Fromagets, | D9: 9.6 | F9: 104 | G9: 0.125 | H9: 7
A10: 2017-04-21 | B10: Super U Francin, Tormery, Le Villard, Tormery, Ret. | D10: 8.1 | F10: 178 | G10: 0.1131944444 | H10: 8
A11: Dernière
A55: Nombre de Randonnées | C55: =COUNTA(A4:A53) -> 8 | D55: Dont: | F55: =NbCoulParCouleur(A4:A53,4) -> 0 | G55: en Raquettes | I55: Moyenne générale
A56: Le Plus | C56: =MAX(D4:D53) -> 11.7 | E56: =MAX(F4:F53) -> 186 | G56: =MAX(G4:G53) -> 0.1270833333 | H56: =MAX(H4:H53) -> 10 | I56: =C59/G59/24 -> 3.292506044
A57: Le Moins | C57: =MIN(D4:D53) -> 7.6 | E57: =MIN(F4:F53) -> 28 | G57: =MIN(G4:G53) -> 0.1131944444 | H57: =MIN(H4:H53) -> 7
A58: Moyenne | C58: =AVERAGE(D4:D53) -> 9.728571429 | E58: =AVERAGE(F4:F53) -> 122.7142857 | G58: =AVERAGE(G4:G53) -> 0.1231150794 | H58: =AVERAGE(H4:H53) -> 8 | I58: =SUM(H4:H53) -> 56
A59: Cumul | C59: =SUM(D4:D53) -> 68.1 | E59: =SUM(F4:F53) -> 859 | G59: =SUM(G4:G53) -> 0.8618055556
A60: Bernard Heck bheck@live.fr 06 41 32 09 56 | C60: Nombre de Restaurant | F60: =NbCoulParCouleur(B4:B53,33) -> 0 | G60: Nombre de Pique Nique | J60: =NbCoulParCouleur(B4:B53,5) -> 0

Sheet Christiane
A1: Randonnées Christiane Année 2017
A2: Date | B2: Randonnée | D2: Distance | F2: Dénivelé + | G2: Durée | H2: Participant | J2: Météo
A4: 2017-01-06 | B4: Murs,Le lac St André , Le lac des Peres, Gallettes, Seloge, Ret | D4: 8.8 | F4: 56 | G4: 0.09722222222 | H4: 7
A5: 2017-02-13 | B5: Les déserts d'Entremonts , Col du Mollard | D5: 6 | F5: 305 | G5: 0.1041666667 | H5: 5
A6: 2017-02-20 | B6: F1, sentier des hauts de Chignin par Montlevin, Retour | D6: 8.4 | F6: 423 | G6: 0.1180555556 | H6: 4
A7: 2017-02-27 | B7: Super U Francin, circuit des vignes Chignin , Retour | D7: 11 | F7: 236 | G7: 0.125 | H7: 7
A8: 2017-04-03 | B8: St André, Martinons, Lac Sablé, Lac Froment, Ret | D8: 9.3 | F8: 241 | G8: 0.1354166667 | H8: 7
A9: 2017-04-07 | B9: St André, la Ratte, Apremont, Pierre Grosse, Ret. | D9: 9.8 | F9: 128 | G9: 0.1111111111 | H9: 5
A10: 2017-04-10 | B10: St André, Lachat, Lac Noir, La palud, St André | D10: 12.1 | F10: 438 | G10: 0.1506944444 | H10: 4
A11: 2017-04-14 | B11: Chapa, La Fourchette, La cuiller, Les delaisses de l'isere, Ret | D11: 11.5 | F11: 328 | G11: 0.125 | H11: 8
A12: 2017-04-18 | B12: St André, La palud, Lachat, La Ratte, St André | D12: 11 | F12: 289 | G12: 0.125 | H12: 5
A13: 2017-05-02 | B13: St André, Lachat, Maison en pierre, Apremont, Ret. | D13: 7.5 | F13: 284 | G13: 0.1048611111 | H13: 5
A14: 2017-05-05 | B14: St Pierre de Soucy, Soucy, Ret,X, Tour du lac de Ste Helene | D14: 13.2 | F14: 240 | G14: 0.15625 | H14: 9
A15: 2017-05-15 | B15: La Foret, Le Bon de Loge, Murs, Retour | D15: 11.7 | F15: 81 | G15: 0.1194444444 | H15: 7
A16: 2017-05-22 | B16: St Georges, Parcours santé Ste Marie, La Baleine, Muguet, Ret. | D16: 8.3 | F16: 167 | G16: 0.1125 | H16: 5
A17: 2017-06-16 | B17: Cascades d'Alloix | D17: 5 | F17: 363 | G17: 0.09375 | H17: 8
A18: 2017-10-09 | B18: La Foret, Murs, Bisplaine, le Lac, Crinquaillé | D18: 10.2 | F18: 56 | G18: 0.125 | H18: 10
A19: 2017-10-16 | B19: Chapa, La Cuiller, Chapa, Gisèle | D19: 8 | F19: 190 | G19: 0.09375 | H19: 6
A20: Dernière
A54: Nombre de Randonnées | C54: =COUNTA(A4:A52) -> 17 | D54: Dont: | F54: 1 | G54: en Raquettes | I54: Moyenne générale
A55: Le Plus | C55: =MAX(D4:D52) -> 13.2 | E55: =MAX(F4:F52) -> 438 | G55: =MAX(G4:G52) -> 0.15625 | H55: =MAX(H4:H52) -> 10 | I55: =C58/G58/24 -> 3.333821376
A56: Le Moins | C56: =MIN(D4:D52) -> 5 | E56: =MIN(F4:F52) -> 56 | G56: =MIN(G4:G52) -> 0.09375 | H56: =MIN(H4:H52) -> 4
A57: Moyenne | C57: =AVERAGE(D4:D52) -> 9.4875 | E57: =AVERAGE(F4:F52) -> 239.0625 | G57: =AVERAGE(G4:G52) -> 0.1185763889 | H57: =AVERAGE(H4:H52) -> 6.375 | I57: =SUM(H4:H52) -> 102
A58: Cumul | C58: =SUM(D4:D52) -> 151.8 | E58: =SUM(F4:F52) -> 3825 | G58: =SUM(G4:G52) -> 1.897222222
A59: Bernard Heck bheck@live.fr 06 41 32 09 56 | C59: Nombre de Restaurant | F59: =NbCoulParCouleur(B4:B70,33) -> 1 | G59: Nombre de Pique Nique | J59: =NbCoulParCouleur(B4:B69,5) -> 0

Sheet Dany
A1: Randonnées Dany Année 2017
A2: Date | B2: Randonnée | D2: Distance | F2: Dénivelé + | G2: Durée | H2: Participant | J2: Météo
A4: 2017-01-06 | B4: Murs,Le lac St André , Le lac des Peres, Gallettes, Seloge, Ret | D4: 8.8 | F4: 56 | G4: 0.09722222222 | H4: 7
A5: 2017-01-09 | B5: Lac, Les Fromagets, Lac Froment, Surprise de Yolande, La Palud St André | D5: 11.2 | F5: 204 | G5: 0.1388888889 | H5: 5
A6: 2017-01-16 | B6: Belisay, Saint Jeoire, Myans Ret | D6: 11.2 | F6: 115 | G6: 0.125 | H6: 6
A7: 2017-01-20 | B7: Chemin de Blardet, la Ratte, Les Pélerins, Maretaz, Les Droully, Ret. | D7: 11.1 | F7: 65 | G7: 0.125 | H7: 5
A8: 2017-01-30 | B8: Murs,Le lac St André , Le lac clair, les Abymes, Maraville Rt des Mortes | D8: 10.8 | F8: 61 | G8: 0.1180555556 | H8: 2
A9: 2017-02-06 | B9: La corne, Blardet Lac des peres, Les Pélerins , Les Drouilly | D9: 9.7 | F9: 65 | G9: 0.1076388889 | H9: 6
A10: 2017-02-10 | B10: Murs, Chapa, Lac Clair, Blardet, RN , Murs | D10: 10.9 | F10: 61 | G10: 0.1111111111 | H10: 2
A11: 2017-02-13 | B11: Murs, Lac St André, La redoute, Myans, Seloge, La foret, Murs | D11: 10.8 | F11: 135 | G11: 0.1076388889 | H11: 2
A12: 2017-02-17 | B12: Murs, La Foret, Bois musart, Champlong , Retour | D12: 7.8 | F12: 35 | G12: 0.08333333333 | H12: 2
A13: 2017-02-27 | B13: Super U Francin, circuit des vignes Chignin , Retour | D13: 11 | F13: 236 | G13: 0.125 | H13: 7
A14: 2017-03-17 | B14: Les Marches , Chignin Gare,Chacusart , lac des Peres,Ret. | D14: 10.5 | F14: 178 | G14: 0.125 | H14: 8
A15: 2017-03-24 | B15: Seloge, Les fontanettes, Myans, Retour idem | D15: 11 | F15: 75 | G15: 0.1354166667 | H15: 4
A16: 2017-03-31 | B16: Seloge Myans, lac des Pères, Pierre hachée, Les Fromagets, | D16: 9.6 | F16: 104 | G16: 0.125 | H16: 7
A17: 2017-04-07 | B17: St André, la Ratte, Apremont, Pierre Grosse, Ret. | D17: 9.8 | F17: 128 | G17: 0.1111111111 | H17: 5
A18: 2017-04-14 | B18: Chapa, La Fourchette, La cuiller, Les delaisses de l'isere, Ret | D18: 11.5 | F18: 328 | G18: 0.125 | H18: 8
A19: 2017-04-21 | B19: Super U Francin, Tormery, Le Villard, Tormery, Ret. | D19: 8.1 | F19: 178 | G19: 0.1131944444 | H19: 8
A20: 2017-05-02 | B20: St André, Lachat, Maison en pierre, Apremont, Ret. | D20: 7.5 | F20: 284 | G20: 0.1048611111 | H20: 5
A21: 2017-05-05 | B21: St Pierre de Soucy, Soucy, Ret, X | D21: 9.6 | F21: 233 | G21: 0.1055555556 | H21: 8
A22: 2017-06-02 | B22: St André, Lachat, Apremont, Ret. | D22: 9 | F22: 100 | G22: 0.1145833333 | H22: 6
A23: 2017-06-12 | B23: St André, La Palud, Lachat, Lac Froment, St André | D23: 7.2 | F23: 162 | G23: 0.1041666667 | H23: 7
A24: 2017-09-18 | B24: les Drouilly, Myans, Chacuzard, Poisy, Crincaillé | D24: 9.4 | F24: 74 | G24: 0.09861111111 | H24: 7
A25: 2017-09-25 | B25: Lac St André, Lachat, ret. Par la Chevre | D25: 10 | F25: 292 | G25: 0.125 | H25: 7
A26: Dernière
A49: Nombre de Randonnées | C49: =COUNTA(A4:A47) -> 23 | D49: Dont: | F49: 0 | G49: en Raquettes | I49: Moyenne générale
A50: Le Plus | C50: =MAX(D4:D47) -> 11.5 | E50: =MAX(F4:F47) -> 328 | G50: =MAX(G4:G47) -> 0.1388888889 | H50: =MAX(H4:H47) -> 8 | I50: =C53/G53/24 -> 3.570643211
A51: Le Moins | C51: =MIN(D4:D47) -> 7.2 | E51: =MIN(F4:F47) -> 35 | G51: =MIN(G4:G47) -> 0.08333333333 | H51: =MIN(H4:H47) -> 2
A52: Moyenne | C52: =AVERAGE(D4:D47) -> 9.840909091 | E52: =AVERAGE(F4:F47) -> 144.0454545 | G52: =AVERAGE(G4:G47) -> 0.1148358586 | H52: =AVERAGE(H4:H47) -> 5.636363636 | I52: =SUM(H4:H47) -> 124
A53: Cumul | C53: =SUM(D4:D47) -> 216.5 | E53: =SUM(F4:F47) -> 3169 | G53: =SUM(G4:G47) -> 2.526388889
A54: Bernard Heck bheck@live.fr 06 41 32 09 56 | C54: Nombre de Restaurant | F54: =NbCoulParCouleur(B4:B67,33) -> 1 | G54: Nombre de Pique Nique | J54: =NbCoulParCouleur(B4:B64,5) -> 0

Sheet Gianna
A1: Randonnées Gianna Année 2017
A2: Date | B2: Randonnée | D2: Distance | F2: Dénivelé + | G2: Durée | H2: Participant | J2: Météo
A4: 2017-01-06 | B4: Murs,Le lac St André , Le lac des Peres, Gallettes, Seloge, Ret | D4: 8.8 | F4: 56 | G4: 0.09722222222 | H4: 7
A5: 2017-01-09 | B5: Lac, Les Fromagets, Lac Froment, Surprise de Yolande, La Palud, ret. | D5: 11.2 | F5: 204 | G5: 0.1388888889 | H5: 5
A6: 2017-01-16 | B6: Belisay, Saint Jeoire, Myans Ret | D6: 11.2 | F6: 115 | G6: 0.125 | H6: 6
A7: 2017-01-30 | B7: Murs,Le lac St André , Le lac clair, les Abymes, Maraville Rt des Mortes | D7: 10.8 | F7: 61 | G7: 0.1180555556 | H7: 2
A8: 2017-02-10 | B8: Murs, Chapa, Lac Clair, Blardet, RN , Murs | D8: 10.9 | F8: 61 | G8: 0.1111111111 | H8: 2
A9: 2017-02-13 | B9: Murs, Lac St André, La redoute, Myans, Seloge, La foret, Murs | D9: 10.8 | F9: 135 | G9: 0.1076388889 | H9: 2
A10: 2017-02-17 | B10: Murs, La Foret, Bois musart, Champlong , Retour | D10: 7.8 | F10: 35 | G10: 0.08333333333 | H10: 2
A11: 2017-03-24 | B11: Seloge, Les fontanettes, Myans, Retour idem | D11: 11 | F11: 75 | G11: 0.1354166667 | H11: 4
A12: 2017-04-18 | B12: St André, La palud, Lachat, La Ratte, St André | D12: 11 | F12: 289 | G12: 0.125 | H12: 5
A13: 2017-04-21 | B13: Super U Francin, Tormery, Le Villard, Tormery, Ret. | D13: 8.1 | F13: 178 | G13: 0.1131944444 | H13: 8
A14: 2017-09-25 | B14: Lac St André, Lachat, ret. Par la Chevre | D14: 10 | F14: 292 | G14: 0.125 | H14: 7
A15: Dernière
A55: Nombre de Randonnées | C55: =COUNTA(A4:A53) -> 12 | D55: Dont: | F55: 0 | G55: en Raquettes | I55: Moyenne générale
A56: Le Plus | C56: =MAX(D4:D53) -> 11.2 | E56: =MAX(F4:F53) -> 292 | G56: =MAX(G4:G53) -> 0.1388888889 | H56: =MAX(H4:H53) -> 8 | I56: =C59/G59/24 -> 3.633206728
A57: Le Moins | C57: =MIN(D4:D53) -> 7.8 | E57: =MIN(F4:F53) -> 35 | G57: =MIN(G4:G53) -> 0.08333333333 | H57: =MIN(H4:H53) -> 2
A58: Moyenne | C58: =AVERAGE(D4:D53) -> 10.14545455 | E58: =AVERAGE(F4:F53) -> 136.4545455 | G58: =AVERAGE(G4:G53) -> 0.1163510101 | H58: =AVERAGE(H4:H53) -> 4.545454545 | I58: =SUM(H4:H53) -> 50
A59: Cumul | C59: =SUM(D4:D53) -> 111.6 | E59: =SUM(F4:F53) -> 1501 | G59: =SUM(G4:G53) -> 1.279861111
A60: Bernard Heck bheck@live.fr 06 41 32 09 56 | C60: Nombre de Restaurant | F60: =NbCoulParCouleur(B4:B70,33) -> 0 | G60: Nombre de Pique Nique | J60: =NbCoulParCouleur(B4:B70,5) -> 0

Sheet Gisèle
A1: Randonnées Gisèle Année 2017
A2: Date | B2: Randonnée | D2: Distance | F2: Dénivelé + | G2: Durée | H2: Participant | J2: Météo
A4: 2017-01-06 | B4: Murs,Le lac St André , Le lac des Peres, Gallettes, Seloge, Ret | D4: 8.8 | F4: 56 | G4: 0.09722222222 | H4: 7
A5: 2017-01-09 | B5: Lac, Les Fromagets, Lac Froment, Surprise de Yolande, La Palud, ret. | D5: 11.2 | F5: 204 | G5: 0.1388888889 | H5: 5
A6: 2017-01-16 | B6: Belisay, Saint Jeoire, Myans Ret | D6: 11.2 | F6: 115 | G6: 0.125 | H6: 6
A7: 2017-01-20 | B7: Chemin de Blardet, la Ratte, Les Pélerins, Maretaz, Les Droully, Ret. | D7: 11.1 | F7: 65 | G7: 0.125 | H7: 5
A8: 2017-01-27 | B8: Col du Granier, Tencovaz, Col du Granier | D8: 6 | F8: 181 | G8: 0.1041666667 | H8: 5
A9: 2017-02-06 | B9: La corne, Blardet Lac des peres, Les Pélerins , Les Drouilly | D9: 9.7 | F9: 65 | G9: 0.1076388889 | H9: 6
A10: 2017-02-10 | B10: Col du Granier, Tencovaz, Col du Granier ,"superbe" | D10: 6.1 | F10: 192 | G10: 0.1076388889 | H10: 3
A11: 2017-02-13 | B11: Les déserts d'Entremonts , Col du Mollard | D11: 6 | F11: 305 | G11: 0.1041666667 | H11: 5
A12: 2017-02-17 | B12: Les deserts dEntremont le grand Carroz, Col du Mollard | D12: 6.7 | F12: 432 | G12: 0.1041666667 | H12: 5
A13: 2017-02-27 | B13: Super U Francin, circuit des vignes Chignin , Retour | D13: 11 | F13: 236 | G13: 0.125 | H13: 7
A14: 2017-03-03 | B14: La Foret, Murs,La Corne, Cugnet, Drouilly | D14: 11.1 | F14: 107 | G14: 0.125 | H14: 10
A15: 2017-03-10 | B15: Les déserts d'Entremonts , Col du Mollard | D15: 6 | F15: 305 | G15: 0.1041666667 | H15: 4
A16: 2017-03-13 | B16: Depart Super U Pontcharra Tour des Lones | D16: 9.5 | F16: 28 | G16: 0.125 | H16: 8
A17: 2017-03-17 | B17: Les Marches , Chignin Gare,Chacusart , lac des Peres,Ret. | D17: 10.5 | F17: 178 | G17: 0.125 | H17: 8
A18: 2017-03-27 | B18: La Foret, Le golf, Chignin, Belissay , ZA | D18: 11.7 | F18: 78 | G18: 0.1270833333 | H18: 8
A19: 2017-03-31 | B19: Seloge Myans, lac des Pères, Pierre hachée, Les Fromagets, | D19: 9.6 | F19: 104 | G19: 0.125 | H19: 7
A20: 2017-04-03 | B20: St André, Martinons, Lac Sablé, Lac Froment, Ret | D20: 9.3 | F20: 241 | G20: 0.1354166667 | H20: 7
A21: 2017-04-07 | B21: St André, la Ratte, Apremont, Pierre Grosse, Ret. | D21: 9.8 | F21: 128 | G21: 0.1111111111 | H21: 5
A22: 2017-04-10 | B22: St André, Lachat, Lac Noir, La palud, St André | D22: 12.1 | F22: 438 | G22: 0.1506944444 | H22: 4
A23: 2017-04-14 | B23: Chapa, La Fourchette, La cuiller, Les delaisses de l'isere, Ret | D23: 11.5 | F23: 328 | G23: 0.125 | H23: 8
A24: 2017-04-18 | B24: St André, La palud, Lachat, La Ratte, St André | D24: 11 | F24: 289 | G24: 0.125 | H24: 5
A25: 2017-05-05 | B25: St Pierre de Soucy, Soucy, Ret,X, Tour du lac de Ste Helene | D25: 13.2 | F25: 240 | G25: 0.15625 | H25: 9
A26: 2017-05-15 | B26: La Foret, Le Bon de Loge, Murs, Retour | D26: 11.7 | F26: 81 | G26: 0.1194444444 | H26: 7
A27: 2017-05-19 | B27: St André, La Palud, Pervenche, Martinon, Lachat, Froment, Ret. | D27: 8.5 | F27: 282 | G27: 0.1041666667 | H27: 3
A28: 2017-05-22 | B28: St Georges, Parcours santé Ste Marie, La Baleine, Muguet, Ret. | D28: 8.3 | F28: 167 | G28: 0.1125 | H28: 5
A29: 2017-05-29 | B29: Les Deserts, Pointe de Cochette rocher de l'Outheran, X , Ret | D29: 6.8 | F29: 638 | G29: 0.1354166667 | H29: 4
A30: 2017-06-02 | B30: St André, Lachat, Apremont, Ret. | D30: 9 | F30: 100 | G30: 0.1145833333 | H30: 6
A31: 2017-06-09 | B31: Chapa, Bellecombette, Bellecombe, Vieux clocher | D31: 8.2 | F31: 445 | G31: 0.1354166667 | H31: 6
A32: 2017-06-12 | B32: St André, La Palud, Lachat, Lac Froment, St André | D32: 7.2 | F32: 162 | G32: 0.1041666667 | H32: 7
A33: 2017-06-16 | B33: Cascades d'Alloix | D33: 5 | F33: 363 | G33: 0.09375 | H33: 8
A34: 2017-06-30 | B34: Apremont, cascade du pichut, Le Villard, Ret, | D34: 7.9 | F34: 227 | G34: 0.09722222222 | H34: 6
A35: 2017-07-07 | B35: Prodin, Lac des Grenouilles, Col de la Perche, Refuge Grande Mont. | D35: 13.5 | F35: 915 | G35: 0.2604166667 | H35: 4
A36: 2017-07-13 | B36: Col de St Saturnin, Pragondran, Piste d'envol x, Ret.(Vacherin) | D36: 10.5 | F36: 610 | G36: 0.21875 | H36: 6
A37: 2017-07-21 | B37: La Trinité, Col de Cochette, Tours de Montmayeur,X,Ret. (Myrtille) | D37: 10.4 | F37: 550 | G37: 0.1979166667 | H37: 6
A38: 2017-07-27 | B38: Ecole en Bauges, Col d'Orgeval, x , Patous, Ret par la piste | D38: 13.8 | F38: 900 | G38: 0.2604166667 | H38: 7
A39: 2017-08-04 | B39: Col du Granier, Pointe de la Gorgeat, Mont Joigny, X , Ret. | D39: 8 | F39: 430 | G39: 0.1666666667 | H39: 5
A40: 2017-08-25 | B40: Pré d'Orcel, Col , croix et chalet de l'Alpe, L'Alpette, Col Belles Ombres | D40: 14.5 | F40: 890 | G40: 0.2916666667 | H40: 4
A41: 2017-09-15 | B41: La Feclaz (1°) , La croix du Nivollet, X , Belvedere du Revard ,Clafoutis | D41: 10 | F41: 412 | G41: 0.1597222222 | H41: 8
A42: 2017-09-18 | B42: les Drouilly, Myans, Chacuzard, Poisy, Crincaillé | D42: 9.4 | F42: 74 | G42: 0.09861111111 | H42: 7
A43: 2017-09-22 | B43: Château Richard, x , Croix du Signal , Ret. | D43: 11 | F43: 561 | G43: 0.2083333333 | H43: 7
A44: 2017-09-25 | B44: Lac St André, Lachat, ret. Par la Chevre | D44: 10 | F44: 292 | G44: 0.125 | H44: 7
A45: 2017-09-29 | B45: Cimetiere, Croix Verpi, St André, Les fromagets Lac St André | D45: 11.8 | F45: 100 | G45: 0.1458333333 | H45: 3
A46: 2017-10-02 | B46: St André, Rte de Bellecombe, Chataigne, Lachat, Lac Froment | D46: 8 | F46: 230 | G46: 0.125 | H46: 3
A47: 2017-10-06 | B47: Barby, Bellevarde,Fées, Rousset, Mt St Michel,x,Stele du maquis, Ret. | D47: 12.5 | F47: 913 | G47: 5h30 | H47: 3
A48: 2017-10-13 | B48: Le Monal, lac du Clou, X , Mélèzes, Le Monal | D48: 11 | F48: 548 | G48: 0.2083333333 | H48: 6
A49: 2017-10-16 | B49: Chapa, La Cuiller, Chapa, Gisèle | D49: 8 | F49: 190 | G49: 0.09375 | H49: 6
A50: 2017-10-20 | B50: Montée et Desccente du Funiculaire de St Hilaire | D50: 5.6 | F50: 800 | G50: 0.1666666667 | H50: 6
A51: Dernière
A59: Nombre de Randonnées | C59: =COUNTA(A4:A57) -> 48 | D59: Dont: | F59: 5 | G59: en Raquettes | I59: Moyenne générale
A60: Le Plus | C60: =MAX(D4:D57) -> 14.5 | E60: =MAX(F4:F57) -> 915 | G60: =MAX(G4:G57) -> 0.2916666667 | H60: =MAX(H4:H57) -> 10 | I60: =C63/G63/24 -> 2.945785088
A61: Le Moins | C61: =MIN(D4:D57) -> 5 | E61: =MIN(F4:F57) -> 28 | G61: =MIN(G4:G57) -> 0.09375 | H61: =MIN(H4:H57) -> 3
A62: Moyenne | C62: =AVERAGE(D4:D57) -> 9.653191489 | E62: =AVERAGE(F4:F57) -> 323.2978723 | G62: =AVERAGE(G4:G57) -> 0.1395078502 | H62: =AVERAGE(H4:H57) -> 5.893617021 | I62: =SUM(H4:H57) -> 277
A63: Cumul | C63: =SUM(D4:D57) -> 453.7 | E63: =SUM(F4:F57) -> 15195 | G63: =SUM(G4:G57) -> 6.417361111
A64: Bernard Heck bheck@live.fr 06 41 32 09 56 | C64: Nombre de Restaurant | F64: =NbCoulParCouleur(B4:B74,33) -> 1 | G64: Nombre de Pique Nique | J64: =NbCoulParCouleur(B4:B74,5) -> 11
C77: 2017-10-09 | D77: La Foret, Murs, Bisplaine, le Lac, Crinquaillé | F77: 10.2 | H77: 56 | I77: 0.125 | J77: 10

Sheet Josiane
A1: Randonnées Josiane Année 2017
A2: Date | B2: Randonnée | D2: Distance | F2: Dénivelé + | G2: Durée | H2: Participant | J2: Météo
A4: 2017-09-08 | B4: Lac St Claire, Villaroux, Tour de Montmayeur, X , Résistants, Ret. | D4: 16.8 | F4: 674 | G4: 0.25 | H4: 6
A5: 2017-09-15 | B5: La Feclaz (1°) , La croix du Nivollet, X , Belvedere du Revard ,Clafoutis | D5: 10 | F5: 412 | G5: 0.1597222222 | H5: 8
A6: 2017-09-22 | B6: Château Richard, x , Croix du Signal , Ret. | D6: 11 | F6: 561 | G6: 0.2083333333 | H6: 7
A7: Dernière
A55: Nombre de Randonnées | C55: =COUNTA(A4:A53) -> 4 | D55: Dont: | F55: 0 | G55: en Raquettes | I55: Moyenne générale
A56: Le Plus | C56: =MAX(D4:D53) -> 16.8 | E56: =MAX(F4:F53) -> 674 | G56: =MAX(G4:G53) -> 0.25 | H56: =MAX(H4:H53) -> 8 | I56: =C59/G59/24 -> 2.548314607
A57: Le Moins | C57: =MIN(D4:D53) -> 10 | E57: =MIN(F4:F53) -> 412 | G57: =MIN(G4:G53) -> 0.1597222222 | H57: =MIN(H4:H53) -> 6
A58: Moyenne | C58: =AVERAGE(D4:D53) -> 12.6 | E58: =AVERAGE(F4:F53) -> 549 | G58: =AVERAGE(G4:G53) -> 0.2060185185 | H58: =AVERAGE(H4:H53) -> 7 | I58: =SUM(H4:H53) -> 21
A59: Cumul | C59: =SUM(D4:D53) -> 37.8 | E59: =SUM(F4:F53) -> 1647 | G59: =SUM(G4:G53) -> 0.6180555556
A60: Bernard Heck bheck@live.fr 06 41 32 09 56 | C60: Nombre de Restaurant | F60: =NbCoulParCouleur(B4:B70,33) -> 0 | G60: Nombre de Pique Nique | J60: =NbCoulParCouleur(B4:B70,5) -> 3

Sheet Marie-F.
A1: Randonnées Marie-France Année 2017
A2: Date | B2: Randonnée | D2: Distance | F2: Dénivelé + | G2: Durée | H2: Participant | J2: Météo
A4: 2017-01-06 | B4: Murs,Le lac St André , Le lac des Peres, Gallettes, Seloge, Ret | D4: 8.8 | F4: 56 | G4: 0.09722222222 | H4: 7
A5: 2017-04-10 | B5: St André, Lachat, Lac Noir, La palud, St André | D5: 12.1 | F5: 438 | G5: 0.1506944444 | H5: 4
A6: 2017-04-14 | B6: Chapa, La Fourchette, La cuiller, Les delaisses de l'isere, Ret | D6: 11.5 | F6: 328 | G6: 0.125 | H6: 8
A7: 2017-05-05 | B7: St Pierre de Soucy, Soucy, Ret,X, Tour du lac de Ste Helene | D7: 13.2 | F7: 240 | G7: 0.15625 | H7: 9
A8: 2017-05-08 | B8: St André, Le devin, Maison en pierre, Lachat, La Palud, les Darbe | D8: 10.1 | F8: 288 | G8: 0.1284722222 | H8: 6
A9: 2017-05-15 | B9: La Foret, Le Bon de Loge, Murs, Retour | D9: 11.7 | F9: 81 | G9: 0.1194444444 | H9: 7
A10: 2017-06-02 | B10: St André, Lachat, Apremont, Ret. | D10: 9 | F10: 100 | G10: 0.1145833333 | H10: 6
A11: 2017-06-12 | B11: St André, La Palud, Lachat, Lac Froment, St André | D11: 7.2 | F11: 162 | G11: 0.1041666667 | H11: 7
A12: 2017-06-23 | B12: St François de Salle, Chal. de la Platte,le Creux de lachat, X, Ret | D12: 17.4 | F12: 624 | G12: 0.25 | H12: 6
A13: 2017-06-30 | B13: Apremont, cascade du pichut, Le Villard, Ret, | D13: 7.9 | F13: 227 | G13: 0.09722222222 | H13: 6
A14: 2017-07-07 | B14: Prodin, Lac des Grenouilles, Col de la Perche, Refuge Grande Mont. | D14: 13.5 | F14: 915 | G14: 0.2604166667 | H14: 4
A15: 2017-07-13 | B15: Col de St Saturnin, Pragondran, Piste d'envol x, Ret.(Vacherin) | D15: 10.5 | F15: 610 | G15: 0.21875 | H15: 6
A16: 2017-08-04 | B16: Col du Granier, Pointe de la Gorgeat, Mont Joigny, X , Ret. | D16: 8 | F16: 430 | G16: 0.1666666667 | H16: 5
A17: 2017-08-18 | B17: Marocaz,Rochefort,Manettaz, roche du Guet, X , La thuile, Ret | D17: 11.3 | F17: 871 | G17: 0.2083333333 | H17: 6
A18: 2017-09-08 | B18: Lac St Claire, Villaroux, Tour de Montmayeur, X , Résistants, Ret. | D18: 16.8 | F18: 674 | G18: 0.25 | H18: 6
A19: 2017-09-11 | B19: Lac St André, Croix de St André, "La Chevre", Lachat, Lac Froment | D19: 12 | F19: 310 | G19: 0.1472222222 | H19: 5
A20: 2017-09-15 | B20: La Feclaz (1°) , La croix du Nivollet, X , Belvedere du Revard ,Clafoutis | D20: 10 | F20: 412 | G20: 0.1597222222 | H20: 8
A21: 2017-09-18 | B21: les Drouilly, Myans, Chacuzard, Poisy, Crincaillé | D21: 9.4 | F21: 74 | G21: 0.09861111111 | H21: 7
A22: 2017-09-22 | B22: Château Richard, x , Croix du Signal , Ret. | D22: 11 | F22: 561 | G22: 0.2083333333 | H22: 7
A23: 2017-09-25 | B23: Lac St André, Lachat, ret. Par la Chevre | D23: 10 | F23: 292 | G23: 0.125 | H23: 7
A24: Dernière
A55: Nombre de Randonnées | C55: =COUNTA(A4:A53) -> 21 | D55: Dont: | F55: 0 | G55: en Raquettes | I55: Moyenne générale
A56: Le Plus | C56: =MAX(D4:D53) -> 17.4 | E56: =MAX(F4:F53) -> 915 | G56: =MAX(G4:G53) -> 0.2604166667 | H56: =MAX(H4:H53) -> 9 | I56: =C59/G59/24 -> 2.89537925
A57: Le Moins | C57: =MIN(D4:D53) -> 7.2 | E57: =MIN(F4:F53) -> 56 | G57: =MIN(G4:G53) -> 0.09722222222 | H57: =MIN(H4:H53) -> 4
A58: Moyenne | C58: =AVERAGE(D4:D53) -> 11.07 | E58: =AVERAGE(F4:F53) -> 384.65 | G58: =AVERAGE(G4:G53) -> 0.1593055556 | H58: =AVERAGE(H4:H53) -> 6.35 | I58: =SUM(H4:H53) -> 127
A59: Cumul | C59: =SUM(D4:D53) -> 221.4 | E59: =SUM(F4:F53) -> 7693 | G59: =SUM(G4:G53) -> 3.186111111
A60: Bernard Heck bheck@live.fr 06 41 32 09 56 | C60: Nombre de Restaurant | F60: =NbCoulParCouleur(B4:B70,33) -> 1 | G60: Nombre de Pique Nique | J60: =NbCoulParCouleur(B4:B70,5) -> 8
C73: 2017-10-09 | D73: La Foret, Murs, Bisplaine, le Lac, Crinquaillé | F73: 10.2 | H73: 56 | I73: 0.125 | J73: 10

Sheet Marie
A1: Randonnées Marie Année 2017
A2: Date | B2: Randonnée | D2: Distance | F2: Dénivelé + | G2: Durée | H2: Participant | J2: Météo
A4: 2017-01-06 | B4: Murs,Le lac St André , Le lac des Peres, Gallettes, Seloge, Ret | D4: 8.8 | F4: 56 | G4: 0.09722222222 | H4: 7
A5: 2017-01-09 | B5: Lac, Les Fromagets, Lac Froment, Surprise de Yolande, La Palud, ret. | D5: 11.2 | F5: 204 | G5: 0.1388888889 | H5: 5
A6: 2017-01-16 | B6: Belisay, Saint Jeoire, Myans Ret | D6: 11.2 | F6: 115 | G6: 0.125 | H6: 6
A7: 2017-01-20 | B7: Chemin de Blardet, la Ratte, Les Pélerins, Maretaz, Les Droully, Ret. | D7: 11.1 | F7: 65 | G7: 0.125 | H7: 5
A8: 2017-01-27 | B8: Col du Granier, Tencovaz, Col du Granier | D8: 6 | F8: 181 | G8: 0.1041666667 | H8: 5
A9: 2017-02-02 | B9: La coche, Direction Col du Granier, Piste de ski du Granier, La coche | D9: 5.8 | F9: 280 | G9: 0.1076388889 | H9: 3
A10: 2017-02-13 | B10: Les déserts d'Entremonts , Col du Mollard | D10: 6 | F10: 305 | G10: 0.1041666667 | H10: 5
A11: 2017-02-17 | B11: Les deserts dEntremont le grand Carroz, Col du Mollard | D11: 6.7 | F11: 432 | G11: 0.1041666667 | H11: 5
A12: 2017-02-24 | B12: chemin des abymes, Myans, chocolaterie Eden, guimauve | D12: 8.3 | F12: 100 | G12: 0.1041666667 | H12: 4
A13: 2017-02-27 | B13: Super U Francin, circuit des vignes Chignin , Retour | D13: 11 | F13: 236 | G13: 0.125 | H13: 7
A14: 2017-03-03 | B14: La Foret, Murs,La Corne, Cugnet, Drouilly | D14: 11.1 | F14: 107 | G14: 0.125 | H14: 10
A15: 2017-03-13 | B15: Depart Super U Pontcharra Tour des Lones | D15: 9.5 | F15: 28 | G15: 0.125 | H15: 8
A16: 2017-03-17 | B16: Les Marches , Chignin Gare,Chacusart , lac des Peres,Ret. | D16: 10.5 | F16: 178 | G16: 0.125 | H16: 8
A17: 2017-03-20 | B17: St André, La Palud, Lachat, St André | D17: 7.6 | F17: 186 | G17: 0.1215277778 | H17: 7
A18: 2017-03-27 | B18: La Foret, Le golf, Chignin, Belissay , ZA | D18: 11.7 | F18: 78 | G18: 0.1270833333 | H18: 8
A19: 2017-04-21 | B19: Super U Francin, Tormery, Le Villard, Tormery, Ret. | D19: 8.1 | F19: 178 | G19: 0.1131944444 | H19: 8
A20: 2017-04-24 | B20: Le Boyat, Puygros, Le Bois, Ret. | D20: 6.7 | F20: 250 | G20: 0.08333333333 | H20: 2
A21: 2017-05-02 | B21: St André, Lachat, Maison en pierre, Apremont, Ret. | D21: 7.5 | F21: 284 | G21: 0.1048611111 | H21: 5
A22: 2017-05-05 | B22: St Pierre de Soucy, Soucy, Ret,X, Tour du lac de Ste Helene | D22: 13.2 | F22: 240 | G22: 0.15625 | H22: 9
A23: 2017-05-08 | B23: St André, Le devin, Maison en pierre, Lachat, La Palud, les Darbe | D23: 10.1 | F23: 288 | G23: 0.1284722222 | H23: 6
A24: 2017-05-15 | B24: Les Marches, La Foret avec le Labrador | D24: 2.5 | F24: 25 | G24: 0.03472222222 | H24: 8
A25: 2017-06-09 | B25: Chapa, Bellecombette, Bellecombe, Vieux clocher | D25: 8.2 | F25: 445 | G25: 0.1354166667 | H25: 6
A26: 2017-06-12 | B26: St André, La Palud, Lachat, Lac Froment, St André | D26: 7.2 | F26: 162 | G26: 0.1041666667 | H26: 7
A27: 2017-06-16 | B27: Cascades d'Alloix | D27: 5 | F27: 363 | G27: 0.09375 | H27: 8
A28: 2017-07-21 | B28: La Trinité, Col de Cochette, Tours de Montmayeur,X,Ret. (Myrtille) | D28: 10.4 | F28: 550 | G28: 0.1979166667 | H28: 6
A29: 2017-07-27 | B29: Ecole en Bauges, Col d'Orgeval, x , Patous, Ret par la piste | D29: 13.8 | F29: 900 | G29: 0.2604166667 | H29: 7
A30: 2017-08-04 | B30: Col du Granier, Pointe de la Gorgeat, Mont Joigny, X , Ret. | D30: 8 | F30: 430 | G30: 0.1666666667 | H30: 5
A31: 2017-08-18 | B31: Marocaz,Rochefort,Manettaz, roche du Guet, X , La thuile, Ret | D31: 11.3 | F31: 871 | G31: 0.2083333333 | H31: 6
A32: 2017-09-15 | B32: La Feclaz (1°) , La croix du Nivollet, X , Belvedere du Revard ,Clafoutis | D32: 10 | F32: 412 | G32: 0.1597222222 | H32: 8
A33: 2017-09-18 | B33: les Drouilly, Myans, Chacuzard, Poisy, Crincaillé | D33: 9.4 | F33: 74 | G33: 0.09861111111 | H33: 7
A34: 2017-09-22 | B34: Château Richard, x , Croix du Signal , Ret. | D34: 11 | F34: 561 | G34: 0.2083333333 | H34: 7
A35: 2017-09-25 | B35: Lac St André, Lachat, ret. Par la Chevre | D35: 10 | F35: 292 | G35: 0.125 | H35: 7
A36: 2017-09-29 | B36: Cimetiere, Croix Verpi, St André, Les fromagets Lac St André | D36: 11.8 | F36: 100 | G36: 0.1458333333 | H36: 3
A37: 2017-10-02 | B37: St André, Rte de Bellecombe, Chataigne, Lachat, Lac Froment | D37: 8 | F37: 230 | G37: 0.125 | H37: 3
A38: 2017-10-06 | B38: Barby, Bellevarde,Fées, Rousset, Mt St Michel,x,Stele du maquis, Ret. | D38: 12.5 | F38: 913 | G38: 5h30 | H38: 3
A39: 2017-10-13 | B39: Le Monal, lac du Clou, X , Mélèzes, Le Monal | D39: 11 | F39: 548 | G39: 0.2083333333 | H39: 6
A40: 2017-10-20 | B40: Montée et Desccente du Funiculaire de St Hilaire | D40: 5.6 | F40: 800 | G40: 0.1666666667 | H40: 6
A41: Dernière
A55: Nombre de Randonnées | C55: =COUNTA(A4:A53) -> 38 | D55: Dont: | F55: 4 | G55: en Raquettes | I55: Moyenne générale
A56: Le Plus | C56: =MAX(D4:D53) -> 13.8 | E56: =MAX(F4:F53) -> 913 | G56: =MAX(G4:G53) -> 0.2604166667 | H56: =MAX(H4:H53) -> 10 | I56: =C59/G59/24 -> 2.942081579
A57: Le Moins | C57: =MIN(D4:D53) -> 2.5 | E57: =MIN(F4:F53) -> 25 | G57: =MIN(G4:G53) -> 0.03472222222 | H57: =MIN(H4:H53) -> 2
A58: Moyenne | C58: =AVERAGE(D4:D53) -> 9.12972973 | E58: =AVERAGE(F4:F53) -> 309.9189189 | G58: =AVERAGE(G4:G53) -> 0.1328896605 | H58: =AVERAGE(H4:H53) -> 6.108108108 | I58: =SUM(H4:H53) -> 226
A59: Cumul | C59: =SUM(D4:D53) -> 337.8 | E59: =SUM(F4:F53) -> 11467 | G59: =SUM(G4:G53) -> 4.784027778
A60: Bernard Heck bheck@live.fr 06 41 32 09 56 | C60: Nombre de Restaurant | F60: =NbCoulParCouleur(B4:B70,33) -> 1 | G60: Nombre de Pique Nique | J60: =NbCoulParCouleur(B4:B70,5) -> 8

Sheet Michel P
A1: Randonnées Michel P. Année 2017
A2: Date | B2: Randonnée | D2: Distance | F2: Dénivelé + | G2: Durée | H2: Participant | J2: Météo
A4: 2017-03-03 | B4: La Foret, Murs,La Corne, Cugnet, Drouilly | D4: 11.1 | F4: 107 | G4: 0.125 | H4: 10
A5: 2017-03-13 | B5: Depart Super U Pontcharra Tour des Lones | D5: 9.5 | F5: 28 | G5: 0.125 | H5: 8
A6: 2017-03-17 | B6: Les Marches , Chignin Gare,Chacusart , lac des Peres,Ret. | D6: 10.5 | F6: 178 | G6: 0.125 | H6: 8
A7: 2017-03-20 | B7: St André, La Palud, Lachat, St André | D7: 7.6 | F7: 186 | G7: 0.1215277778 | H7: 7
A8: 2017-03-27 | B8: La Foret, Le golf, Chignin, Belissay , ZA | D8: 11.7 | F8: 78 | G8: 0.1270833333 | H8: 8
A9: 2017-03-31 | B9: Seloge Myans, lac des Pères, Pierre hachée, Les Fromagets, | D9: 9.6 | F9: 104 | G9: 0.125 | H9: 7
A10: 2017-04-21 | B10: Super U Francin, Tormery, Le Villard, Tormery, Ret. | D10: 8.1 | F10: 178 | G10: 0.1131944444 | H10: 8
A11: Dernière
A55: Nombre de Randonnées | C55: =COUNTA(A4:A53) -> 8 | D55: Dont: | F55: =NbCoulParCouleur(A4:A53,4) -> 0 | G55: en Raquettes | I55: Moyenne générale
A56: Le Plus | C56: =MAX(D4:D53) -> 11.7 | E56: =MAX(F4:F53) -> 186 | G56: =MAX(G4:G53) -> 0.1270833333 | H56: =MAX(H4:H53) -> 10 | I56: =C59/G59/24 -> 3.292506044
A57: Le Moins | C57: =MIN(D4:D53) -> 7.6 | E57: =MIN(F4:F53) -> 28 | G57: =MIN(G4:G53) -> 0.1131944444 | H57: =MIN(H4:H53) -> 7
A58: Moyenne | C58: =AVERAGE(D4:D53) -> 9.728571429 | E58: =AVERAGE(F4:F53) -> 122.7142857 | G58: =AVERAGE(G4:G53) -> 0.1231150794 | H58: =AVERAGE(H4:H53) -> 8 | I58: =SUM(H4:H53) -> 56
A59: Cumul | C59: =SUM(D4:D53) -> 68.1 | E59: =SUM(F4:F53) -> 859 | G59: =SUM(G4:G53) -> 0.8618055556
A60: Bernard Heck bheck@live.fr 06 41 32 09 56 | C60: Nombre de Restaurant | F60: =NbCoulParCouleur(B4:B53,33) -> 0 | G60: Nombre de Pique Nique | J60: =NbCoulParCouleur(B4:B53,5) -> 0

Sheet MichelT
A1: Dernière
A2: Date | B2: Randonnée | D2: Distance | F2: Dénivelé + | G2: Durée | H2: Participant | J2: Météo
A4: 2017-02-17 | B4: Les deserts dEntremont le grand Carroz, Col du Mollard | D4: 6.7 | F4: 432 | G4: 0.1041666667 | H4: 5
A5: 2017-04-14 | B5: Chapa, La Fourchette, La cuiller, Les delaisses de l'isere, Ret | D5: 11.5 | F5: 328 | G5: 0.125 | H5: 8
A6: 2017-05-08 | B6: St André, Le devin, Maison en pierre, Lachat, La Palud, les Darbe | D6: 10.1 | F6: 288 | G6: 0.1284722222 | H6: 6
A7: 2017-05-22 | B7: St Georges, Parcours santé Ste Marie, La Baleine, Muguet, Ret. | D7: 8.3 | F7: 167 | G7: 0.1125 | H7: 5
A8: 2017-05-29 | B8: Les Deserts, Pointe de Cochette rocher de l'Outheran, X , Ret | D8: 6.8 | F8: 638 | G8: 0.1354166667 | H8: 4
A9: 2017-06-05 | B9: Lac St André, Croix de St André, Lachat, La palud, Lac Froment | D9: 11.4 | F9: 290 | G9: 0.1388888889 | H9: 2
A10: 2017-06-12 | B10: St André, La Palud, Lachat, Lac Froment, St André | D10: 7.2 | F10: 162 | G10: 0.1041666667 | H10: 7
A11: 2017-06-16 | B11: Cascades d'Alloix | D11: 5 | F11: 363 | G11: 0.09375 | H11: 8
A12: 2017-06-23 | B12: St François de Salle, Chal. de la Platte,le Creux de lachat, X, Ret | D12: 17.4 | F12: 624 | G12: 0.25 | H12: 6
A13: 2017-07-27 | B13: Ecole en Bauges, Col d'Orgeval, x , Patous, Ret par la piste | D13: 13.8 | F13: 900 | G13: 0.2604166667 | H13: 7
A14: 2017-08-04 | B14: Col du Granier, Pointe de la Gorgeat, Mont Joigny, X , Ret. | D14: 8 | F14: 430 | G14: 0.1666666667 | H14: 5
A15: 2017-08-18 | B15: Marocaz,Rochefort,Manettaz, roche du Guet, X , La thuile, Ret | D15: 11.3 | F15: 871 | G15: 0.2083333333 | H15: 6
A16: 2017-09-08 | B16: Lac St Claire, Villaroux, Tour de Montmayeur, X , Résistants, Ret. | D16: 16.8 | F16: 674 | G16: 0.25 | H16: 6
A17: 2017-10-16 | B17: Chapa, La Cuiller, Chapa, Gisèle | D17: 8 | F17: 190 | G17: 0.09375 | H17: 6
A54: Nombre de Randonnées | C54: =COUNTA(A4:A52) -> 14 | D54: Dont: | F54: =NbCoulParCouleur(B4:B69,4) -> 1 | G54: en Raquettes | I54: Moyenne générale
A55: Le Plus | C55: =MAX(D4:D52) -> 17.4 | E55: =MAX(F4:F52) -> 900 | G55: =MAX(G4:G52) -> 0.2604166667 | H55: =MAX(H4:H52) -> 8 | I55: =C58/G58/24 -> 2.730412536
A56: Le Moins | C56: =MIN(D4:D52) -> 5 | E56: =MIN(F4:F52) -> 162 | G56: =MIN(G4:G52) -> 0.09375 | H56: =MIN(H4:H52) -> 2
A57: Moyenne | C57: =AVERAGE(D4:D52) -> 10.16428571 | E57: =AVERAGE(F4:F52) -> 454.0714286 | G57: =AVERAGE(G4:G52) -> 0.155109127 | H57: =AVERAGE(H4:H52) -> 5.785714286 | I57: =SUM(H4:H52) -> 81
A58: Cumul | C58: =SUM(D4:D52) -> 142.3 | E58: =SUM(F4:F52) -> 6357 | G58: =SUM(G4:G52) -> 2.171527778
A59: Bernard Heck bheck@live.fr 06 41 32 09 56 | C59: Nombre de Restaurant | F59: =NbCoulParCouleur(B4:B69,33) -> 0 | G59: Nombre de Pique Nique | J59: =NbCoulParCouleur(B4:B69,5) -> 6

Sheet Monique
A1: Randonnées Monique Année 2017
A2: Date | B2: Randonnée | D2: Distance | F2: Dénivelé + | G2: Durée | H2: Participant | J2: Météo
A4: 2017-02-24 | B4: chemin des abymes, Myans, chocolaterie Eden, guimauve | D4: 8.3 | F4: 100 | G4: 0.1041666667 | H4: 4
A5: 2017-03-03 | B5: La Foret, Murs,La Corne, Cugnet, Drouilly | D5: 11.1 | F5: 107 | G5: 0.125 | H5: 10
A6: 2017-03-13 | B6: Depart Super U Pontcharra Tour des Lones | D6: 9.5 | F6: 28 | G6: 0.125 | H6: 8
A7: 2017-05-05 | B7: X, Tour du lac de Ste Helene | D7: 3.6 | F7: 20 | G7: 0.05208333333 | H7: 6
A8: Dernière
A55: Nombre de Randonnées | C55: =COUNTA(A4:A53) -> 5 | D55: Dont: | F55: 0 | G55: en Raquettes | I55: Moyenne générale
A56: Le Plus | C56: =MAX(D4:D53) -> 11.1 | E56: =MAX(F4:F53) -> 107 | G56: =MAX(G4:G53) -> 0.125 | H56: =MAX(H4:H53) -> 10 | I56: =C59/G59/24 -> 3.333333333
A57: Le Moins | C57: =MIN(D4:D53) -> 3.6 | E57: =MIN(F4:F53) -> 20 | G57: =MIN(G4:G53) -> 0.05208333333 | H57: =MIN(H4:H53) -> 4
A58: Moyenne | C58: =AVERAGE(D4:D53) -> 8.125 | E58: =AVERAGE(F4:F53) -> 63.75 | G58: =AVERAGE(G4:G53) -> 0.1015625 | H58: =AVERAGE(H4:H53) -> 7 | I58: =SUM(H4:H53) -> 28
A59: Cumul | C59: =SUM(D4:D53) -> 32.5 | E59: =SUM(F4:F53) -> 255 | G59: =SUM(G4:G53) -> 0.40625
A60: Bernard Heck bheck@live.fr 06 41 32 09 56 | C60: Nombre de Restaurant | F60: =NbCoulParCouleur(B4:B70,33) -> 1 | G60: Nombre de Pique Nique | J60: =NbCoulParCouleur(B4:B70,5) -> 0

Sheet Yolande
A1: Randonnées Yolande Année 2017
A2: Date | B2: Randonnée | D2: Distance | F2: Dénivelé + | G2: Durée | H2: Participant | J2: Météo
A4: 2017-01-27 | B4: Col du Granier, Tencovaz, Col du Granier | D4: 6 | F4: 181 | G4: 0.1041666667 | H4: 5
A5: 2017-02-02 | B5: La coche, Direction Col du Granier, Piste de ski du Granier, La coche | D5: 5.8 | F5: 280 | G5: 0.1076388889 | H5: 3
A6: 2017-02-06 | B6: La corne, Blardet Lac des peres, Les Pélerins , Les Drouilly | D6: 9.7 | F6: 65 | G6: 0.1076388889 | H6: 6
A7: 2017-02-10 | B7: Col du Granier, Tencovaz, Col du Granier ,"superbe" | D7: 6.1 | F7: 192 | G7: 0.1076388889 | H7: 3
A8: 2017-02-13 | B8: Les déserts d'Entremonts , Col du Mollard | D8: 6 | F8: 305 | G8: 0.1041666667 | H8: 5
A9: 2017-02-17 | B9: Les deserts dEntremont le grand Carroz, Col du Mollard | D9: 6.7 | F9: 432 | G9: 0.1041666667 | H9: 5
A10: 2017-02-20 | B10: F1, sentier des hauts de Chignin par Montlevin, Retour | D10: 8.4 | F10: 423 | G10: 0.1180555556 | H10: 4
A11: 2017-02-24 | B11: chemin des abymes, Myans, chocolaterie Eden, guimauve | D11: 8.3 | F11: 100 | G11: 0.1041666667 | H11: 4
A12: 2017-02-27 | B12: Super U Francin, circuit des vignes Chignin , Retour | D12: 11 | F12: 236 | G12: 0.125 | H12: 7
A13: 2017-03-03 | B13: La Foret, Murs,La Corne, Cugnet, Drouilly | D13: 11.1 | F13: 107 | G13: 0.125 | H13: 10
A14: 2017-03-10 | B14: Les déserts d'Entremonts , Col du Mollard | D14: 6 | F14: 305 | G14: 0.1041666667 | H14: 4
A15: 2017-03-13 | B15: Depart Super U Pontcharra Tour des Lones | D15: 9.5 | F15: 28 | G15: 0.125 | H15: 8
A16: 2017-03-17 | B16: Les Marches , Chignin Gare,Chacusart , lac des Peres,Ret. | D16: 10.5 | F16: 178 | G16: 0.125 | H16: 8
A17: 2017-03-20 | B17: St André, La Palud, Lachat, St André | D17: 7.6 | F17: 186 | G17: 0.1215277778 | H17: 7
A18: 2017-03-24 | B18: Seloge, Les fontanettes, Myans, Retour idem | D18: 11 | F18: 75 | G18: 0.1354166667 | H18: 4
A19: 2017-03-27 | B19: La Foret, Le golf, Chignin, Belissay , ZA | D19: 11.7 | F19: 78 | G19: 0.1270833333 | H19: 8
A20: 2017-03-31 | B20: Seloge Myans, lac des Pères, Pierre hachée, Les Fromagets, | D20: 9.6 | F20: 104 | G20: 0.125 | H20: 7
A21: 2017-04-03 | B21: St André, Martinons, Lac Sablé, Lac Froment, Ret | D21: 9.3 | F21: 241 | G21: 0.1354166667 | H21: 7
A22: 2017-04-14 | B22: Chapa, La Fourchette, La cuiller, Les delaisses de l'isere, Ret | D22: 11.5 | F22: 328 | G22: 0.125 | H22: 8
A23: 2017-04-18 | B23: St André, La palud, Lachat, La Ratte, St André | D23: 11 | F23: 289 | G23: 0.125 | H23: 5
A24: 2017-04-21 | B24: Super U Francin, Tormery, Le Villard, Tormery, Ret. | D24: 8.1 | F24: 178 | G24: 0.1131944444 | H24: 8
A25: 2017-04-24 | B25: Le Boyat, Puygros, Le Bois, Ret. | D25: 6.7 | F25: 250 | G25: 0.08333333333 | H25: 2
A26: 2017-05-15 | B26: La Foret, Le Bon de Loge, Murs, Retour | D26: 11.7 | F26: 81 | G26: 0.1194444444 | H26: 7
A27: 2017-05-19 | B27: St André, La Palud, Pervenche, Martinon, Lachat, Froment, Ret. | D27: 8.5 | F27: 282 | G27: 0.1041666667 | H27: 3
A28: 2017-05-22 | B28: St Georges, Parcours santé Ste Marie, La Baleine, Muguet, Ret. | D28: 8.3 | F28: 167 | G28: 0.1125 | H28: 5
A29: 2017-05-29 | B29: Les Deserts, Pointe de Cochette, rocher de l'Outheran, X , Ret | D29: 6.8 | F29: 638 | G29: 0.1354166667 | H29: 4
A30: 2017-06-09 | B30: Chapa, Bellecombette, Bellecombe, Vieux clocher | D30: 8.2 | F30: 445 | G30: 0.1354166667 | H30: 6
A31: 2017-06-12 | B31: St André, La Palud, Lachat, Lac Froment, St André | D31: 7.2 | F31: 162 | G31: 0.1041666667 | H31: 7
A32: 2017-06-16 | B32: Cascades d'Alloix | D32: 5 | F32: 363 | G32: 0.09375 | H32: 8
A33: 2017-06-23 | B33: St François de Salle, Chal. de la Platte,le Creux de lachat, X, Ret | D33: 17.4 | F33: 624 | G33: 0.25 | H33: 6
A34: 2017-06-30 | B34: Apremont, cascade du pichut, Le Villard, Ret, | D34: 7.9 | F34: 227 | G34: 0.09722222222 | H34: 6
A35: 2017-07-07 | B35: Prodin, Lac des Grenouilles, Col de la Perche, Refuge Grande Mont. | D35: 13.5 | F35: 915 | G35: 0.2604166667 | H35: 4
A36: 2017-07-13 | B36: Col de St Saturnin, Pragondran, Piste d'envol x, Ret.(Vacherin) | D36: 10.5 | F36: 610 | G36: 0.21875 | H36: 6
A37: 2017-07-21 | B37: La Trinité, Col de Cochette, Tours de Montmayeur,X,Ret. (Myrtille) | D37: 10.4 | F37: 550 | G37: 0.1979166667 | H37: 6
A38: 2017-07-27 | B38: Ecole en Bauges, Col d'Orgeval, x , Patous, Ret par la piste | D38: 13.8 | F38: 900 | G38: 0.2604166667 | H38: 7
A39: 2017-08-04 | B39: Col du Granier, Pointe de la Gorgeat, Mont Joigny, X , Ret. | D39: 8 | F39: 430 | G39: 0.1666666667 | H39: 5
A40: 2017-08-18 | B40: Marocaz,Rochefort,Manettaz, roche du Guet, X , La thuile, Ret | D40: 11.3 | F40: 871 | G40: 0.2083333333 | H40: 6
A41: 2017-08-25 | B41: Pré d'Orcel, Col , croix et chalet de l'Alpe, L'Alpette, Col Belles Ombres | D41: 14.5 | F41: 890 | G41: 0.2916666667 | H41: 4
A42: 2017-09-08 | B42: Lac St Claire, Villaroux, Tour de Montmayeur, X , Résistants, Ret. | D42: 16.8 | F42: 674 | G42: 0.25 | H42: 6
A43: 2017-09-11 | B43: Lac St André, Croix de St André, "La Chevre", Lachat, Lac Froment | D43: 10.7 | F43: 310 | G43: 0.1472222222 | H43: 5
A44: 2017-09-15 | B44: La Feclaz (1°) , La croix du Nivollet, X , Belvedere du Revard ,Clafoutis | D44: 10 | F44: 412 | G44: 0.1597222222 | H44: 8
A45: 2017-09-18 | B45: les Drouilly, Myans, Chacuzard, Poisy, Crincaillé | D45: 9.4 | F45: 74 | G45: 0.09861111111 | H45: 7
A46: 2017-09-22 | B46: Château Richard, x , Croix du Signal , Ret. | D46: 11 | F46: 561 | G46: 0.2083333333 | H46: 7
A47: 2017-09-25 | B47: Lac St André, Lachat, ret. Par la Chevre | D47: 2 | F47: 10 | G47: 0.02083333333 | H47: 7
A48: 2017-10-09 | B48: La Foret, Murs, Bisplaine, le Lac, Crinquaillé | D48: 10.2 | F48: 56 | G48: 0.125 | H48: 10
A49: 2017-10-13 | B49: Le Monal, lac du Clou, X , Mélèzes, Le Monal | D49: 11 | F49: 548 | G49: 0.2083333333 | H49: 6
A50: 2017-10-16 | B50: Chapa, La Cuiller, Chapa, Gisèle | D50: 8 | F50: 190 | G50: 0.09375 | H50: 6
A51: 2017-10-20 | B51: Montée et Desccente du Funiculaire de St Hilaire | D51: 5.6 | F51: 800 | G51: 0.1666666667 | H51: 6
A52: Dernière
A63: Nombre de Randonnées | C63: =COUNTA(A4:A61) -> 49 | D63: Dont: | F63: 6 | G63: en Raquettes | I63: Moyenne générale
A64: Le Plus | C64: =MAX(D4:D61) -> 17.4 | E64: =MAX(F4:F61) -> 915 | G64: =MAX(G4:G61) -> 0.2916666667 | H64: =MAX(H4:H61) -> 10 | I64: =C67/G67/24 -> 2.758133824
A65: Le Moins | C65: =MIN(D4:D61) -> 2 | E65: =MIN(F4:F61) -> 10 | G65: =MIN(G4:G61) -> 0.02083333333 | H65: =MIN(H4:H61) -> 2
A66: Moyenne | C66: =AVERAGE(D4:D52) -> 9.360416667 | E66: =AVERAGE(F4:F61) -> 340.6458333 | G66: =AVERAGE(G4:G61) -> 0.14140625 | H66: =AVERAGE(H4:H61) -> 5.958333333 | I66: =SUM(H4:H61) -> 286
A67: Cumul | C67: =SUM(D4:D52) -> 449.3 | E67: =SUM(F4:F61) -> 16351 | G67: =SUM(G4:G61) -> 6.7875
A68: Bernard Heck bheck@live.fr 06 41 32 09 56 | C68: Nombre de Restaurant | F68: =NbCoulParCouleur(B4:B70,33) -> 0 | G68: Nombre de Pique Nique | J68: =NbCoulParCouleur(B4:B78,5) -> 13
